{"text_format":"1","workbook":"xlsx","n_sheets":13,"sheets":["AER only","Instructions","Contents","Business & other details","3.1 Revenue","3.2 Operating expenditure","3.2.3 Provisions","3.3 Assets (RAB)","3.4 Operational data","3.5 Physical assets","3.6 Quality of service","3.7 Operating environment","NSP amendments"],"not_rendered":{"charts":0,"images":5,"macros":1,"external_links":1,"defined_names":420,"comments":0,"pivot_tables":0},"unopened":[],"bounds":{"document_bytes":16777216,"sheet_cells":100000,"rows_first":2000,"rows_last":500,"rows_between":2000,"halvings":0,"cell_chars":16384,"cell_head_chars":4096},"cells_cut":0,"cells_raw":0,"read":"whole","date_system":"1900"}

{"sheet":"AER only","index":0,"n_rows":130,"n_cols":32,"rows_kept":130,"cut":false,"hidden":true,"merged":[[0,1,0,11],[46,4,46,5],[100,1,102,1],[103,1,107,1],[111,1,112,1]]}
[null,"Data in these columns used for data validation and database purposes."]
[null,"Date last modified:"]
[null,"14 April 2015","merged cell C46/47"]
[null,"17 April 2015","adjusted dms_RYE to automate based on dms_Model (NB: EB & CA refer to CRCP_y5)"]
[null,"14 May 2015","adapted this cover for use in CA & EB RINs"]
[null,"October 2015","added full Trading Name for worksheet headings"]
[null,null,"added new formulas for distinguishing RYE for RFM vs PTRM and Reset (set by ref to CRCP or FRCP) and EB & CA (set by ref to CRY)"]
[]
[]
[]
[null,"dms_TradingName_List","dms_TradingNameFull_List","dms_ABN_List","dms_JurisdictionList","dms_Sector_List","dms_Segment_List","dms_FormControl_List","dms_RPT_List","dms_RPTMonth_List","dms_CRCPlength_List","dms_FRCPlength_List","dms_663_List","dms_DeterminationRef_List",null,null,null,"dms_Addr1_List","dms_Addr2_List","dms_Suburb_List","dms_State_List","dms_PostCode_List","dms_PAddr1_List","dms_PAddr2_List","dms_PSuburb_List","dms_PState_List","dms_PPostCode_List","dms_ContactName1_List","dms_ContactPh1_List","dms_ContactEmail_List"]
[null,"ActewAGL Distribution","ActewAGL Distribution",76670568688,"ACT","Electricity","Distribution","Revenue cap","Calendar","December",5,5,5,"2014-19 Distribution Determination",null,null,null,"40 Bunda Street",null,"CANBERRA","ACT","2601","GPO BOX 366",null,"CANBERRA","ACT",2601,"Robert Walker","02 6248 3847","robert.walker@actewagle.com.au"]
[null,"ActewAGL Distribution (Tx Assets)","ActewAGL Distribution (Tx Assets)",76670568688,"ACT","Electricity","Distribution","Revenue cap","Calendar","December",5,5,5,"distribution determination",null,null,null,null,null,null,"ACT"]
[null,"AGN","AGN",78551685,"SA","Gas","Distribution","Revenue cap","Financial","June",5,5,5,"distribution determination",null,null,null,null,null,null,"SA"]
[null,"Ausgrid","Ausgrid",67505337385,"NSW","Electricity","Distribution","Revenue cap","Financial","June",5,5,5,"2014-19 Distribution Determination",null,null,null,"570 George St",null,"SYDNEY","NSW",2000,null,null,null,null,null,"John Thomson","(02) 9269 2312","john.thomson@ausgrid.com.au"]
[null,"Ausgrid (Tx Assets)","Ausgrid (Tx Assets)",67505337385,"NSW","Electricity","Distribution","Revenue cap","Financial","June",5,5,5,"distribution determination",null,null,null,null,null,null,"NSW"]
[null,"AusNet (D)","AusNet Services (D)",91064651118,"Vic","Electricity","Distribution","Revenue cap","Calendar","December",5,5,2,"2016-20 Distribution Determination",null,null,null,"Level 32","2 Southbank Boulevard","SOUTHBANK","Vic","3006","Locked Bag 14051",null,"MELBOURNE CITY MAIL CENTRE","VIC",null,"Tom Hallam","03 9695 6617","Thomas.hallam@SP-Ausnet.com.au"]
[null,"AusNet (T)","AusNet (T)",48116124362,"Vic","Electricity","Transmission","Revenue cap","Financial","March",5,5,2,"transmission determination",null,null,null,"Level 32","2 Southbank Boulevard","SOUTHBANK","Vic","3006",null,null,null,null,null,"Tom Hallam","03 9695 6617","Thomas.hallam@SP-Ausnet.com.au"]
[null,"Australian Distribution Co.","Australian Distribution Co.",11222333444,"-","Electricity","Distribution","Revenue cap","Financial","June",5,5,2,"distribution determination",null,null,null,null,null,null,"-"]
[null,"Australian Transmission Co.","Australian Transmission Co.",11222333444,"-","Electricity","Transmission","Revenue cap","Financial","June",5,5,5,"transmission determination",null,null,null,null,null,null,"-"]
[null,"CitiPower","CitiPower",76064651056,"Vic","Electricity","Distribution","Revenue cap","Calendar","December",5,5,2,"2016-20 Distribution Determination",null,null,null,"40 Market Street",null,"MELBOURNE","Vic","3000","Locked Bag 14090",null,"MELBOURNE","VIC",null,"Hannah Williams","03 9683 4088","hwilliams@powercor.com.au"]
[null,"Directlink","Directlink",16779340889,"Qld","Electricity","Transmission","Revenue cap","Financial","June",10,5,5,"transmission determination",null,null,null,null,null,null,"NSW"]
[null,"ElectraNet","ElectraNet",41094482416,"SA","Electricity","Transmission","Revenue cap","Financial","June",5,5,5,"transmission determination",null,null,null,"52-55 East Terrace","Rymill Park","ADELAIDE","SA","5000","PO Box 7096","Hutt Street Post Office","ADELAIDE","SA",null,"Bill Jackson","08 8404 7969","jackson.bill@electranet.com.au"]
[null,"Endeavour Energy","Endeavour Energy",59253130878,"NSW","Electricity","Distribution","Revenue cap","Financial","June",5,5,5,"2014-19 Distribution Determination",null,null,null,"51 Huntingwood Drive",null,"HUNTINGWOOD","NSW","2148","PO Box 811",null,"SEVEN HILLS","NSW",null,"Jon Hocking","02 9853 4386 / 0407 348 156","Jon.Hocking@Endeavourenergy.com.au"]
[null,"Energex","Energex",40078849055,"Qld","Electricity","Distribution","Revenue cap","Financial","June",5,5,5,"2015-20 Distribution Determination",null,null,null,"26 Reddacliff Street",null,"NEWSTEAD","Qld","4006","26 Reddacliff Street",null,"NEWSTEAD","QLD","4006","Nicola Roscoe","07 3664 5891","nicolaroscoe@energex.com.au"]
[null,"Ergon Energy","Ergon Energy",50087646062,"Qld","Electricity","Distribution","Revenue cap","Financial","June",5,5,5,"2015-20 Distribution Determination",null,null,null,"22 Walker Street",null,"TOWNSVILLE","Qld","4810",null,null,null,null,null,"Jenny Doyle, Group Manager Regulatory Affairs","(07) 3851 6416","jenny.doyle@ergon.com.au"]
[null,"Essential Energy","Essential Energy",37428185226,"NSW","Electricity","Distribution","Revenue cap","Financial","June",5,5,5,"2014-19 Distribution Determination",null,null,null,"8 Buller Street",null,"PORT MACQUARIE","NSW","2444","PO Box 5730",null,"Port MacQuarie","NSW",null,"Catherine Waddell","02 6338 3553","Catherine.waddell@essentialenergy.com.au"]
[null,"Jemena Electricity","Jemena Electricity",82064651083,"Vic","Electricity","Distribution","Revenue cap","Calendar","December",5,5,2,"2016-20 Distribution Determination",null,null,null,"321 Ferntree Gully Road",null,"MT WAVERLEY","Vic","3149","321 Ferntree Gully Road",null,"MT WAVERLEY","VIC","3149","Anton Murashev","03 8544 9036","anton.murashev@jemena.com.au"]
[null,"Murraylink","Murraylink",79181207909,"SA","Electricity","Transmission","Revenue cap","Financial","June",5,5,5,"transmission determination",null,null,null,null,null,null,"NSW"]
[null,"Powercor Australia","Powercor Australia",89064651109,"Vic","Electricity","Distribution","Revenue cap","Calendar","December",5,5,2,"2016-20 Distribution Determination",null,null,null,"40 Market Street",null,"MELBOURNE","Vic","3000","Locked bag 14090",null,"MELBOURNE","VIC",3001,"Hannah Williams","03 9683 4088","hwilliams@powercor.com.au"]
[null,"Powerlink","Queensland Electricity Transmission Corporation Limited trading as Powerlink Queensland",82078849233,"Qld","Electricity","Transmission","Revenue cap","Financial","June",5,5,5,"transmission determination",null,null,null,"33 Harold St",null,"VIRGINIA","Qld","4014","PO Box 1193",null,"VIRGINIA","QLD",4014,"Jennifer Harris","07 3860 2667","jharris@powerlink.com.au"]
[null,"Qld,SA &ACT Gas Reset","Qld,SA &ACT Gas Reset",22222222222,"-","Gas","Distribution","?",null,null,5,5,"x","n/a",null,null,null,null,null,null,"-"]
[null,"Roma to Brisbane Pipeline","APT Petroleum Pipelines Limited t/a Roma to Brisbane Pipeline","009 737 393","Qld","Gas","Distribution","?","Financial","June",5,5,"x","n/a"]
[null,"SA Power Networks","SA Power Networks",13332330749,"SA","Electricity","Distribution","Revenue cap","Financial","June",5,5,5,"2015-20 Distribution Determination",null,null,null,"1 Anzac Highway",null,"KESWICK","SA","5035","GPO Box 77",null,"ADELAIDE","SA",null,"Damien O'Connor","08 8404 5066","damien.oconnor@sapowernetworks.com.au"]
[null,"TasNetworks (D)","TasNetworks (D)",24167357299,"Tas","Electricity","Distribution","Revenue cap","Financial","June",5,5,5,"distribution determination",null,null,null,"21 Kirksway Place",null,"HOBART","Tas","7000","GPO Box 191",null,"HOBART","Tas",null,"Leigh Mayne","03 6270 3691","rrp2012@auroraenergy.com.au"]
[null,"TasNetworks (T)","TasNetworks (T)",24167357299,"Tas","Electricity","Transmission","Revenue cap","Financial","March",5,5,5,"transmission determination",null,null,null,"1-7 Maria Street",null,"LENAH VALLEY","Tas","7008","PO Box 606",null,"MOONAH","Tas",null,"Heath Dillon","03 6274 3664","heath.dillon@transend.com.au"]
[null,"TransGrid","TransGrid",19622755774,"NSW","Electricity","Transmission","Revenue cap","Financial","June",5,5,5,"transmission determination",null,null,null,"180 Thomas Street",null,"HAYMARKET","NSW","2000","PO Box A1000",null,"SYDNEY SOUTH","NSW",null,"Andrew Kingsmill","02 9284 3149","andrew.kingsmill@transgrid.com.au"]
[null,"United Energy","United Energy",70064651029,"Vic","Electricity","Distribution","Revenue cap","Calendar","December",5,5,2,"2016-20 Distribution Determination",null,null,null,"6 Nexus Court",null,"MULGRAVE","Vic","3170","PO Box 449",null,"MOUNT WAVERLEY","VIC",null,"Mathew Abraham","03 8846 9758","mathew.abraham@ue.com.au"]
[null,"Victorian DNSP Backcasting","Victorian DNSP Backcasting",33333333666,"Vic","Electricity","Distribution","?","Calendar",null,5,5,"x","distribution determination",null,null,null,null,null,null,"Vic"]
[null,"Victorian DNSP Reset ","Victorian DNSP Reset ",33333333333,"Vic","Electricity","Distribution","?","Calendar",null,5,5,"x","distribution determination",null,null,null,null,null,null,"Vic"]
[null,"Western Power (D)","Western Power (D)",18540492861,"WA","Electricity","Distribution","Revenue cap","Financial","June",5,4,"x","distribution determination",null,null,null,null,null,null,"WA",null,null,null,null,null,null,"Judy Hunter","08 9326 6239"]
[null,"Western Power (T)","Western Power (T)",18540492861,"WA","Electricity","Transmission","Revenue cap","Financial","June",5,4,"x","transmission determination",null,null,null,null,null,null,"WA",null,null,null,null,null,null,"Judy Hunter","08 9326 6239"]
[]
[]
[]
[]
[null,"dms_Model_List ","DELETE NR 'CRY' IF NOT AN ANNUAL RIN (EB, CA , ARR)",null,"dms_RYE_Formula_Result",null,null,null,null,null,null,null,null,"dms_0203_ProjectType",null,null,null,"dms_020303_01_UOM","dms_020501_01_UOM","dms_020501_02_UOM","dms_020501_03_UOM","dms_020501_04_UOM","dms_020603_01_UOM","dms_040102_01_UOM","dms_040102_04_UOM"]
[null,"ARR","ANNUAL REPORTING STATEMENT",null,{"$f":"LEFT(dms_SingleYear_FinalYear_Result,2)&RIGHT(dms_SingleYear_FinalYear_Result,2)","v":"2016"},"=LEFT(dms_SingleYear_FinalYear_Result,2)&RIGHT(dms_SingleYear_FinalYear_Result,2)",null,"Formula errors are OK",null,null,null,null,null,"New line on new route - single circuit",null,null,null,"Circuit line length in km","0's","0's","0's","0's","0's","0's","days"]
[null,"CA","CATEGORY ANALYSIS",null,{"$f":"LEFT(dms_SingleYear_FinalYear_Result,2)&RIGHT(dms_SingleYear_FinalYear_Result,2)","v":"2016"},"=LEFT(dms_SingleYear_FinalYear_Result,2)&RIGHT(dms_SingleYear_FinalYear_Result,2)",null,"Formula errors are OK",null,null,null,null,null,"New line on new route - dual circuit",null,null,null,"Circuit line length in km","0's","0's","0's","0's","0's","0's","0's"]
[null,"CPI","CPI",null,null,null,null,null,null,null,null,null,null,"New line on new route - other",null,null,null,"Circuit line length in km","MVA added","MVA added","MVA added","MVA added","0's","0's","$0s"]
[null,"EB","ECONOMIC BENCHMARKING",null,{"$f":"LEFT(dms_SingleYear_FinalYear_Result,2)&RIGHT(dms_SingleYear_FinalYear_Result,2)","v":"2016"},"=LEFT(dms_SingleYear_FinalYear_Result,2)&RIGHT(dms_SingleYear_FinalYear_Result,2)",null,"Formula errors are OK",null,null,null,null,null,"Line rebuild over existing route - single circuit",null,null,null,"Circuit line length in km","0's","0's","0's","0's","0's","$0s","0's"]
[null,"PTRM","POST TAX REVENUE MODEL",null,{"$f":"LEFT(dms_MultiYear_FinalYear_Result,2)&RIGHT(dms_MultiYear_FinalYear_Result,2)","v":"2020"},"=LEFT(dms_MultiYear_FinalYear_Result,2)&RIGHT(dms_MultiYear_FinalYear_Result,2)",null,null,null,null,null,null,null,"Line rebuild over existing route - dual circuit",null,null,null,"Number","total spend $0s","total spend $0s","total spend $0s","total spend $0s","(per cent)"]
[null,"Reset","REGULATORY REPORTING STATEMENT",null,{"$f":"LEFT(dms_MultiYear_FinalYear_Result,2)&RIGHT(dms_MultiYear_FinalYear_Result,2)","v":"2020"},"=LEFT(dms_MultiYear_FinalYear_Result,2)&RIGHT(dms_MultiYear_FinalYear_Result,2)",null,"Formula errors are OK",null,null,null,null,null,"Reconductor - Single circuit",null,null,null,"Number","net circuit km added","net circuit km added","net circuit km added","net circuit km added"]
[null,"RFM","ROLL FORWARD MODEL",null,{"$f":"LEFT(dms_CRCP_FinalYear_Result,2)&RIGHT(dms_CRCP_FinalYear_Result,2)","v":"2016"},"=LEFT(dms_CRCP_FinalYear_Result,2)&RIGHT(dms_CRCP_FinalYear_Result,2)",null,null,null,null,null,null,null,"Reconductor - Dual circuit",null,null,null,"Number","total spend $0s","total spend $0s","total spend $0s","total spend $0s"]
[null,"WACC","WEIGHTED AVERAGE COST OF CAPITAL",null,{"$f":"LEFT(dms_MultiYear_FinalYear_Result,2)&RIGHT(dms_MultiYear_FinalYear_Result,2)","v":"2020"},"=LEFT(dms_MultiYear_FinalYear_Result,2)&RIGHT(dms_MultiYear_FinalYear_Result,2)",null,null,null,null,null,null,null,"Other",null,null,null,null,"net circuit km added","net circuit km added","net circuit km added","net circuit km added"]
[null,null,null,null,null,null,null,null,null,null,null,null,null,null,null,null,null,null,"total spend $0s","total spend $0s","total spend $0s","total spend $0s"]
[null,null,null,null,null,null,null,null,null,null,null,null,null,null,null,null,null,null,"0's",null,"$0s"]
[null,null,null,null,null,null,null,null,null,null,null,null,null,null,null,null,null,null,"0's"]
[null,null,null,null,null,null,null,null,null,null,null,null,null,null,null,null,null,null,"0's"]
[null,null,null,null,null,null,null,null,null,null,null,null,null,null,null,null,null,null,"$0s"]
[null,null,null,null,null,null,null,null,null,null,null,null,null,null,null,null,null,null,null,null,null,null,null,null,null,null,null,null,null,null,null,""]
[]
[]
[]
[null,"dms_SourceList","dms_FormControl_Choices",null,"dms_FRCPlength_Num_List","dms_FinalYear_List","dms_CRCPlength_Num_List","dms_CFinalYear_List","dms_RCP_fyear_list","dms_CRY_ListF","dms_CRY_ListC","dms_RCP_cyear_list"]
[null,"After appeal","Revenue cap",null,1,"FRCP_y1",1,"CRCP_y1","dms_fy1","2005-06",2006,"dms_cy1"]
[null,"Draft decision","Revenue yield",null,2,"FRCP_y2",2,"CRCP_y2","dms_fy2","2006-07",2007,"dms_cy2"]
[null,"Final decision","Weighted average price cap",null,3,"FRCP_y3",3,"CRCP_y3","dms_fy3","2007-08","2008","dms_cy3"]
[null,"Pass through decision",null,null,4,"FRCP_y4",4,"CRCP_y4","dms_fy4","2008-09","2009","dms_cy4"]
[null,"PTRM annual update",null,null,5,"FRCP_y5",5,"CRCP_y5","dms_fy5","2009-10","2010","dms_cy5"]
[null,"PTRM interim update 1",null,null,6,"FRCP_y6",6,"CRCP_y6","dms_fy6","2010-11","2011","dms_cy6"]
[null,"PTRM interim update 2",null,null,7,"FRCP_y7",7,"CRCP_y7","dms_fy7","2011-12","2012","dms_cy7"]
[null,"PTRM interim update 3",null,null,8,"FRCP_y8",8,"CRCP_y8","dms_fy8","2012-13","2013","dms_cy8"]
[null,"PTRM interim update 4",null,null,9,"FRCP_y9",9,"CRCP_y9","dms_fy9","2013-14","2014","dms_cy9"]
[null,"Regulatory proposal",null,null,10,"FRCP_y10",10,"CRCP_y10","dms_fy10","2014-15","2015","dms_cy10"]
[null,"Reporting",null,null,null,null,null,null,"dms_fy11","2015-16","2016","dms_cy11"]
[null,"Revised regulatory proposal",null,null,null,null,null,null,"dms_fy12","2016-17","2017","dms_cy12"]
[null,"RFM annual update",null,"dms_FRCP_years",null,"dms_CRCP_years",null,"dms_CRCP_index","dms_fy13","2017-18","2018","dms_cy13"]
[null,"WACC annual update",null,{"$f":"FRCP_y1","v":"2015-16"},"dms_FRCP_y1",{"$f":"IF(dms_RPT=\"financial\",VALUE(LEFT(dms_FRCP_y1,4)-1)&\"-\"&TEXT(VALUE(RIGHT(dms_FRCP_y1,2)-1),\"0#\"),VALUE(LEFT(dms_FRCP_y1,4)-1))","v":"2014-15"},"dms_CRCP_yZ",1,"dms_fy14","2018-19",2019,"dms_cy14"]
[null,null,null,{"$f":"IF(dms_RPT=\"financial\",VALUE(LEFT(dms_FRCP_y1,4)+1)&\"-\"&VALUE(MID(dms_FRCP_y1,3,2)+2),VALUE(LEFT(dms_FRCP_y1,4)+1))","v":"2016-17"},"dms_FRCP_y2",{"$f":"IF(dms_RPT=\"financial\",VALUE(LEFT(dms_CRCP_yZ,4)-1)&\"-\"&TEXT(VALUE(RIGHT(dms_CRCP_yZ,2)-1),\"0#\"),VALUE(LEFT(dms_CRCP_yZ,4)-1))","v":"2013-14"},"dms_CRCP_yY",2,"dms_fy15","2019-20","2020","dms_cy15"]
[null,null,null,{"$f":"IF(dms_RPT=\"financial\",VALUE(LEFT(dms_FRCP_y2,4)+1)&\"-\"&VALUE(MID(dms_FRCP_y2,3,2)+2),VALUE(LEFT(dms_FRCP_y2,4)+1))","v":"2017-18"},"dms_FRCP_y3",{"$f":"IF(dms_RPT=\"financial\",VALUE(LEFT(dms_CRCP_yY,4)-1)&\"-\"&TEXT(VALUE(RIGHT(dms_CRCP_yY,2)-1),\"0#\"),VALUE(LEFT(dms_CRCP_yY,4)-1))","v":"2012-13"},"dms_CRCP_yX",3]
[null,null,null,{"$f":"IF(dms_RPT=\"financial\",VALUE(LEFT(dms_FRCP_y3,4)+1)&\"-\"&VALUE(MID(dms_FRCP_y3,3,2)+2),VALUE(LEFT(dms_FRCP_y3,4)+1))","v":"2018-19"},"dms_FRCP_y4",{"$f":"IF(dms_RPT=\"financial\",VALUE(LEFT(dms_CRCP_yX,4)-1)&\"-\"&TEXT(VALUE(RIGHT(dms_CRCP_yX,2)-1),\"0#\"),VALUE(LEFT(dms_CRCP_yX,4)-1))","v":"2011-12"},"dms_CRCP_yW",4]
[null,null,null,{"$f":"IF(dms_RPT=\"financial\",VALUE(LEFT(dms_FRCP_y4,4)+1)&\"-\"&VALUE(MID(dms_FRCP_y4,3,2)+2),VALUE(LEFT(dms_FRCP_y4,4)+1))","v":"2019-20"},"dms_FRCP_y5",{"$f":"IF(dms_RPT=\"financial\",VALUE(LEFT(dms_CRCP_yW,4)-1)&\"-\"&TEXT(VALUE(RIGHT(dms_CRCP_yW,2)-1),\"0#\"),VALUE(LEFT(dms_CRCP_yW,4)-1))","v":"2010-11"},"dms_CRCP_yV",5]
[null,null,null,{"$f":"IF(dms_RPT=\"financial\",VALUE(LEFT(dms_FRCP_y5,4)+1)&\"-\"&VALUE(MID(dms_FRCP_y5,3,2)+2),VALUE(LEFT(dms_FRCP_y5,4)+1))","v":"2020-21"},"dms_FRCP_y6",{"$f":"IF(dms_RPT=\"financial\",VALUE(LEFT(dms_CRCP_yV,4)-1)&\"-\"&TEXT(VALUE(RIGHT(dms_CRCP_yV,2)-1),\"0#\"),VALUE(LEFT(dms_CRCP_yV,4)-1))","v":"2009-10"},"dms_CRCP_yU",6]
[null,null,null,{"$f":"IF(dms_RPT=\"financial\",VALUE(LEFT(dms_FRCP_y6,4)+1)&\"-\"&VALUE(MID(dms_FRCP_y6,3,2)+2),VALUE(LEFT(dms_FRCP_y6,4)+1))","v":"2021-22"},"dms_FRCP_y7",{"$f":"IF(dms_RPT=\"financial\",VALUE(LEFT(dms_CRCP_yU,4)-1)&\"-\"&TEXT(VALUE(RIGHT(dms_CRCP_yU,2)-1),\"0#\"),VALUE(LEFT(dms_CRCP_yU,4)-1))","v":"2008-09"},"dms_CRCP_yT",7]
[null,null,null,{"$f":"IF(dms_RPT=\"financial\",VALUE(LEFT(dms_FRCP_y7,4)+1)&\"-\"&VALUE(MID(dms_FRCP_y7,3,2)+2),VALUE(LEFT(dms_FRCP_y7,4)+1))","v":"2022-23"},"dms_FRCP_y8",{"$f":"IF(dms_RPT=\"financial\",VALUE(LEFT(dms_CRCP_yT,4)-1)&\"-\"&TEXT(VALUE(RIGHT(dms_CRCP_yT,2)-1),\"0#\"),VALUE(LEFT(dms_CRCP_yT,4)-1))","v":"2007-08"},"dms_CRCP_yS",8]
[null,null,null,{"$f":"IF(dms_RPT=\"financial\",VALUE(LEFT(dms_FRCP_y8,4)+1)&\"-\"&VALUE(MID(dms_FRCP_y8,3,2)+2),VALUE(LEFT(dms_FRCP_y8,4)+1))","v":"2023-24"},"dms_FRCP_y9",{"$f":"IF(dms_RPT=\"financial\",VALUE(LEFT(dms_CRCP_yS,4)-1)&\"-\"&TEXT(VALUE(RIGHT(dms_CRCP_yS,2)-1),\"0#\"),VALUE(LEFT(dms_CRCP_yS,4)-1))","v":"2006-07"},"dms_CRCP_yR",9]
[null,null,null,{"$f":"IF(dms_RPT=\"financial\",VALUE(LEFT(dms_FRCP_y9,4)+1)&\"-\"&VALUE(MID(dms_FRCP_y9,3,2)+2),VALUE(LEFT(dms_FRCP_y9,4)+1))","v":"2024-25"},"dms_FRCP_y10",{"$f":"IF(dms_RPT=\"financial\",VALUE(LEFT(dms_CRCP_yR,4)-1)&\"-\"&TEXT(VALUE(RIGHT(dms_CRCP_yR,2)-1),\"0#\"),VALUE(LEFT(dms_CRCP_yR,4)-1))","v":"2005-06"},"dms_CRCP_yQ",10]
[]
[]
[]
[]
[]
[]
[]
[]
[]
[]
[]
[null,"Reason for interruption","Detailed reason for interruption","dms_Reason_Interruption"]
[null,"Animal","Animal impact","Animal"]
[null,null,"Animal nesting/burrowing, etc and other","Asset failure"]
[null,null,"Other","Other"]
[null,"Asset failure","LV","Overloads"]
[null,null,"Distribution substation","Planned"]
[null,null,"HV","Network business"]
[null,null,"Zone substation","Third party"]
[null,null,"Subtransmission","Unknown"]
[null,"Other","insert description of 'other'","Vegetation"]
[null,"Overloads","-","Weather"]
[null,"Planned","-","2 - STPIS Exclusion (3.3)(a)"]
[null,"Network business","Network error","3 - STPIS Exclusion (3.3)(a)"]
[null,null,"Switching and protection error","4 - STPIS Exclusion (3.3)(a)"]
[null,"Third party","Fire","5 - STPIS Exclusion (3.3)(a)"]
[null,null,"Other","6 - STPIS Exclusion (3.3)(a)"]
[null,null,"Dig-in","7 - STPIS Exclusion (3.3)(a)"]
[null,null,"Unauthorised access"]
[null,null,"Vehicle impact"]
[null,"Unknown","Unknown"]
[null,"Vegetation","Blow-in/Fall-in - NSP responsibility"]
[null,null,"Grow-in - NSP responsibility"]
[null,null,"Blow-in/Fall-in - Other responsible party"]
[null,null,"Grow-in - Other responsible party"]
[null,"Weather","-"]
[null,"2 - STPIS Exclusion (3.3)(a)","-"]
[null,"3 - STPIS Exclusion (3.3)(a)","-"]
[null,"4 - STPIS Exclusion (3.3)(a)","-"]
[null,"5 - STPIS Exclusion (3.3)(a)","-"]
[null,"6 - STPIS Exclusion (3.3)(a)","-"]
[null,"7 - STPIS Exclusion (3.3)(a)","-"]

{"sheet":"Instructions","index":1,"n_rows":27,"n_cols":4,"rows_kept":27,"cut":false,"hidden":false,"merged":[[24,2,24,4],[25,2,25,3],[26,2,26,4],[8,2,8,4],[10,2,10,4],[12,2,12,4],[20,2,20,4],[22,2,22,4],[7,2,7,3],[1,1,1,5],[2,1,2,5],[3,2,3,4],[4,2,4,4],[5,2,5,4]]}
[]
[null,{"$f":"CONCATENATE(dms_Segment,\" Network Service Provider\")","v":"Distribution Network Service Provider"}]
[null,"Annual Reporting RIN Template"]
[null,null,{"$f":"CONCATENATE(\"This template is to be used by \",dms_TradingName,\" to fulfil its reporting obligations to the AER.\")","v":"This template is to be used by Ausgrid to fulfil its reporting obligations to the AER."}]
[null,null,"INSTRUCTIONS"]
[null,null,"Complete the Business & other details worksheet before entering data or values in any other worksheets. The Business & other details worksheet is linked to other worksheets within the workbook and automatically generates certain column headings and conditional formatting."]
[]
[null,null,"Identifying CONFIDENTIAL INFORMATION:\n\nPlease use the macro at the top of each \nworksheet to identify confidential information. \n\n"]
[null,null,"-Do this by selecting the cell or cells that contain confidential information and then run the Mark selected cells as CONFIDENTIAL macro. This will format the cells a specific colour that is identified by the AER's database which in turn marks that information as confidential.\n\n-To reverse this, select the cell or cells and run the Return cells to NON-CONFIDENTIAL macro"]
[]
[null,null,"UNITS OF MEASURE\n\nAll amounts are to be unrounded and reported in nominal terms on a one for one basis: that is 1000 is to be entered as '1000'.\n\n"]
[]
[null,null,"COLOUR CODING OF INPUT / NON-INPUT CELLS:"]
[null,null,null,"Yellow = Input cell (mandatory)"]
[null,null,null,"Darker yellow = input cell (mandatory)"]
[null,null,null,"Orange = input cell (if data available)"]
[null,null,null,"Grey = Not applicable/No inputs required"]
[null,null,null,"Leave coloured cells blank if no information exists. \nPLEASE DO NOT ENTER TEXT into cells that are to contain numeric data."]
[]
[]
[null,null,"WORKSHEET NAVIGATION\n\nMany tables in the worksheets have been \"grouped\" to allow for easy navigation. To ungroup or group data use the outline symbols in the left margin of excel (for Row groupings) or above the columns (for column groupings). \n\n\n\n"]
[]
[null,null,"RETURNING COMPLETED RESPONSES\n\nPlease return four (4) files to the AER: \n1. A confidential version which must contain a complete set of all responses with confidential information marked using the Mark selected cells CONFIDENTIAL macro and which has been completed using the locked template file provided by the AER. \n\n2. An actual and an estimate version with confidential information marked using the Mark selected cells CONFIDENTIAL macro and which has been completed using the locked template file provided by the AER.\n\n3. A public version with confidential information either removed completely or aggregated in some form together with writtten consent to disclose the public version of the response.\n\n\nUse the drop down box on the Business and other details worksheet to identify the file as either confidential ('consolidated') or public. "]
[]
[null,null,"SUBMITTING AMENDED DATA TO THE AER\n\nIf an NSP wishes to correct data previously submitted to the AER it should resubmit that data using the original completed submission as the starting point. Please make any necessary changes to the data. Data that is not being amended should be left unchanged. \n\nNSPs must identify the reason for the amendments in the Amendment Reason box on the  Business and other details worksheet. NSPs may provide further details regarding any amendments in the Amendments worksheet. \n\n."]
[null,null,"NSP may use Amended Data macro to highlight cells\nthat contain amended data."]
[null,null,"Please resubmit two (2) files - a confidential version and a public version of the amended submission to the AER"]

{"sheet":"Contents","index":2,"n_rows":12,"n_cols":2,"rows_kept":12,"cut":false,"hidden":false,"merged":[]}
[null,"REGULATORY REPORTING STATEMENT"]
[null,{"$f":"dms_TradingName","v":"Ausgrid"}]
[null,{"$f":"CONCATENATE(\"Benchmarking RIN response \",CRY)","v":"Benchmarking RIN response 2015-16"}]
[]
[null,"CONTENTS"]
[]
[]
[]
[]
[]
[]
[null,"3.             ECONOMIC BENCHMARKING"]

{"sheet":"Business & other details","index":3,"n_rows":88,"n_cols":27,"rows_kept":88,"cut":false,"hidden":false,"merged":[[54,0,87,0],[82,4,82,8],[24,2,24,3],[24,4,24,7],[32,1,32,8],[49,2,49,3],[51,2,51,8],[23,4,23,7],[7,1,7,8],[11,1,11,8],[13,2,13,4],[14,2,14,4],[17,2,17,3],[17,4,17,7],[18,4,18,7],[19,2,19,3],[19,4,19,7],[22,2,22,3],[22,4,22,7]]}
[null,"REGULATORY REPORTING STATEMENT"]
[null,{"$f":"dms_TradingName","v":"Ausgrid"}]
[null,{"$f":"CONCATENATE(\"Benchmarking RIN response \",CRY)","v":"Benchmarking RIN response 2015-16"}]
[null,"BUSINESS & OTHER DETAILS"]
[]
[]
[null,"Instructions"]
[null,"Complete the following business details regulatory template before entering data or values in any other regulatory template. This regulatory template is linked to other cells within the spreadsheet and automatically generates column headings."]
[]
[null,"SUBMISSION PARTICULARS INPUT SHEETS"]
[]
[null,"ENTITY DETAILS"]
[]
[null,"Short name","Ausgrid"]
[null,"ACN / ABN",{"$f":"INDEX(dms_ABN_List,MATCH(dms_TradingName,dms_TradingName_List))","v":67505337385}]
[]
[]
[null,"Business address","Address 1",null,{"$f":"INDEX(dms_Addr1_List,MATCH(dms_TradingName,dms_TradingName_List))","v":"570 George St"}]
[null,null,null,"Address 2",{"$f":"IF(ISBLANK(INDEX(dms_Addr2_List,MATCH(dms_TradingName,dms_TradingName_List))),\"\",INDEX(dms_Addr2_List,MATCH(dms_TradingName,dms_TradingName_List)))","v":""}]
[null,null,"Suburb",null,{"$f":"INDEX(dms_Suburb_List,MATCH(dms_TradingName,dms_TradingName_List))","v":"SYDNEY"}]
[null,null,null,"State",{"$f":"INDEX(dms_State_List,MATCH(dms_TradingName,dms_TradingName_List))","v":"NSW"},"p/code",{"$f":"INDEX(dms_PostCode_List,MATCH(dms_TradingName,dms_TradingName_List))","v":2000}]
[]
[null,"Postal address","Address 1",null,{"$f":"INDEX(dms_PAddr1_List,MATCH(dms_TradingName,dms_TradingName_List))","v":0}]
[null,null,null,"Address 2",{"$f":"IF(ISBLANK(INDEX(dms_PAddr2_List,MATCH(dms_TradingName,dms_TradingName_List))),\"\",INDEX(dms_PAddr2_List,MATCH(dms_TradingName,dms_TradingName_List)))","v":""}]
[null,null,"Suburb",null,{"$f":"INDEX(dms_PSuburb_List,MATCH(dms_TradingName,dms_TradingName_List))","v":0}]
[null,null,null,"State",{"$f":"INDEX(dms_PState_List,MATCH(dms_TradingName,dms_TradingName_List))","v":0},"p/code",{"$f":"INDEX(dms_PPostCode_List,MATCH(dms_TradingName,dms_TradingName_List))","v":0}]
[]
[]
[null,"Contact name/s",{"$f":"INDEX(dms_ContactName1_List,MATCH(dms_TradingName,dms_TradingName_List))","v":"John Thomson"}]
[null,"Contact phone/s",{"$f":"INDEX(dms_ContactPh1_List,MATCH(dms_TradingName,dms_TradingName_List))","v":"(02) 9269 2312"},null,null,null,null,null,null,null,null,null,null,null,null,null,null,null,null,null,null,null,null,null,null,null,"Tom Hallam"]
[null,"Contact email address/s",{"$f":"INDEX(dms_ContactEmail_List,MATCH(dms_TradingName,dms_TradingName_List))","v":"john.thomson@ausgrid.com.au"},null,null,null,null,null,null,null,null,null,null,null,null,null,null,null,null,null,null,null,null,null,null,null,"Tom Hallam"]
[]
[null,"REGULATORY CONTROL PERIODS"]
[]
[null,"Forthcoming regulatory control period","2015-16",{"$f":"dms_FRCP_y2","v":"2016-17"},{"$f":"dms_FRCP_y3","v":"2017-18"},{"$f":"dms_FRCP_y4","v":"2018-19"},{"$f":"dms_FRCP_y5","v":"2019-20"},{"$f":"dms_FRCP_y6","v":"2020-21"},{"$f":"IF(dms_RPT=\"financial\",VALUE(LEFT(FRCP_y6,4)+1)&\"-\"&VALUE(MID(FRCP_y6,3,2)+2),VALUE(LEFT(FRCP_y6,4)+1))","v":"2021-22"}]
[]
[]
[null,"Current regulatory control period",{"$f":"dms_CRCP_FirstYear_Result","v":"2010-11"},{"$f":"IF(dms_RPT=\"financial\",VALUE(LEFT(CRCP_y1,4)+1)&\"-\"&TEXT(VALUE(RIGHT(CRCP_y1,2)+1),\"0#\"),VALUE(LEFT(CRCP_y1,4)+1))","v":"2011-12"},{"$f":"IF(dms_RPT=\"financial\",VALUE(LEFT(CRCP_y2,4)+1)&\"-\"&TEXT(VALUE(RIGHT(CRCP_y2,2)+1),\"0#\"),VALUE(LEFT(CRCP_y2,4)+1))","v":"2012-13"},{"$f":"IF(dms_RPT=\"financial\",VALUE(LEFT(CRCP_y3,4)+1)&\"-\"&TEXT(VALUE(RIGHT(CRCP_y3,2)+1),\"0#\"),VALUE(LEFT(CRCP_y3,4)+1))","v":"2013-14"},{"$f":"IF(dms_RPT=\"financial\",VALUE(LEFT(CRCP_y4,4)+1)&\"-\"&TEXT(VALUE(RIGHT(CRCP_y4,2)+1),\"0#\"),VALUE(LEFT(CRCP_y4,4)+1))","v":"2014-15"},{"$f":"IF(dms_RPT=\"financial\",VALUE(LEFT(CRCP_y5,4)+1)&\"-\"&TEXT(VALUE(RIGHT(CRCP_y5,2)+1),\"0#\"),VALUE(LEFT(CRCP_y5,4)+1))","v":"2015-16"}]
[]
[]
[null,"Previous regulatory control period",{"$f":"IF(dms_RPT=\"financial\",VALUE(LEFT(PRCP_y2,4)-1)&\"-\"&TEXT(VALUE(MID(PRCP_y2,3,2)),\"0#\"),VALUE(LEFT(PRCP_y2,4)-1))","v":"2005-06"},{"$f":"IF(dms_RPT=\"financial\",VALUE(LEFT(PRCP_y3,4)-1)&\"-\"&TEXT(VALUE(MID(PRCP_y3,3,2)),\"0#\"),VALUE(LEFT(PRCP_y3,4)-1))","v":"2006-07"},{"$f":"IF(dms_RPT=\"financial\",VALUE(LEFT(PRCP_y4,4)-1)&\"-\"&TEXT(VALUE(MID(PRCP_y4,3,2)),\"0#\"),VALUE(LEFT(PRCP_y4,4)-1))","v":"2007-08"},{"$f":"IF(dms_RPT=\"financial\",VALUE(LEFT(PRCP_y5,4)-1)&\"-\"&TEXT(VALUE(RIGHT(PRCP_y5,2)-1),\"0#\"),VALUE(LEFT(PRCP_y5,4)-1))","v":"2008-09"},{"$f":"IF(dms_RPT=\"financial\",VALUE(LEFT(CRCP_y1,4)-1)&\"-\"&TEXT(VALUE(RIGHT(CRCP_y1,2)-1),\"0#\"),VALUE(LEFT(CRCP_y1,4)-1))","v":"2009-10"}]
[]
[]
[null,"Current regulatory year","2015-16","CRY"]
[]
[]
[null,null,"DELETE NR 'CRY' IF NOT AN ANNUAL RIN (EB, CA , ARR)"]
[null,null,"APPLY NR 'CRY' IF AN ANNUAL RIN (EB, CA , ARR)"]
[]
[null,"Source","Reporting",null,"Please select the correct submission type from the dropdown list."]
[null,"Data quality (actual, estimate, public, consolidated)","Consolidated"]
[null,"Amended RIN submission - amendment reason","Corrected data error in cell DPA0311 in table 3.5.1.3 - see d18/84336 - updated on 12 June 2018"]
[null,"Submission Date","dd/mm/yyyy","dms_SubmissionDate","Please enter date this file submitted to AER (dd/mm/yyyy)"]
[null,"EBSS - First application of scheme in forthcoming period?","No"]
["HIDE THESE ROWS","Sector",{"$f":"INDEX(dms_Sector_List,MATCH(dms_TradingName,dms_TradingName_List))","v":"Electricity"},"dms_Sector","=INDEX(dms_Sector_List,MATCH(dms_TradingName,dms_TradingName_List))"]
[null,"Segment",{"$f":"INDEX(dms_Segment_List,MATCH(dms_TradingName,dms_TradingName_List))","v":"Distribution"},"dms_Segment","=INDEX(dms_Segment_List,MATCH(dms_TradingName,dms_TradingName_List))"]
[null,"Regulatory Year Ending",{"$f":"IF(dms_MultiYear_Flag=1,LEFT(dms_Specified_FinalYear,2)&RIGHT(dms_Specified_FinalYear,2),INDEX(dms_RYE_Formula_Result,MATCH(dms_Model,dms_Model_List)))","v":"2016"},"dms_RYE","=IF(dms_MultiYear_Flag=1,LEFT(dms_Specified_FinalYear,2)&RIGHT(dms_Specified_FinalYear,2),INDEX(dms_RYE_Formula_Result,MATCH(dms_Model,dms_Model_List)))"]
[null,"Reporting Period Type",{"$f":"INDEX(dms_RPT_List,MATCH(dms_TradingName,dms_TradingName_List))","v":"Financial"},"dms_RPT","=INDEX(dms_RPT_List,MATCH(dms_TradingName,dms_TradingName_List))"]
[null,"Model or RIN Type","EB","dms_Model","Drop down selection"]
[null,"Security Classification","Public","dms_Classification","Always Public"]
[null,"Template - version no.",5,"dms_TemplateNumber"]
[null,"Dollar $ real month",{"$f":"INDEX(dms_RPTMonth_List,MATCH(dms_TradingName,dms_TradingName_List))","v":"June"},"dms_RPTMonth","=INDEX(dms_RPTMonth_List,MATCH(dms_TradingName,dms_TradingName_List))"]
[null,"Dollar $ real  (the last month before the FRCP_y1)",{"$f":"IF(SUM(dms_SingleYear_Model)>0,CONCATENATE(dms_RPTMonth)&\" \"&VALUE((LEFT(CRY,2))&RIGHT(CRY,2)),CONCATENATE(dms_RPTMonth)&\" \"&VALUE((LEFT(dms_CRCP_FinalYear_Result,2))&RIGHT(dms_CRCP_FinalYear_Result,2)))","v":"June 2016"},"dms_DollarReal","=IF(SUM(dms_SingleYear_Model)>0,CONCATENATE(dms_RPTMonth)&\" \"&VALUE((LEFT(CRY,2))&RIGHT(CRY,2)),CONCATENATE(dms_RPTMonth)&\" \"&VALUE((LEFT(dms_CRCP_FinalYear_Result,2))&RIGHT(dms_CRCP_FinalYear_Result,2)))"]
[null,"Form of control",{"$f":"INDEX(dms_FormControl_List,MATCH(dms_TradingName,dms_TradingName_List))","v":"Revenue cap"},"dms_FormControl","=INDEX(dms_FormControl_List,MATCH(dms_TradingName,dms_TradingName_List))"]
[null,"RIN response - version no.",1,"dms_RINversion"]
[null,"Jurisdiction",{"$f":"INDEX(dms_JurisdictionList,MATCH(dms_TradingName,dms_TradingName_List))","v":"NSW"},"dms_Jurisdiction","=INDEX(dms_JurisdictionList,MATCH(dms_TradingName,dms_TradingName_List))"]
[null,"Backcast Multiyear EB, CA or ARR?",0,"dms_MultiYear_Flag","1=y, 0-n"]
[null,null,2013,"dms_Specified_FinalYear","The result here is returned to dms_CRCP_FinalYear_Result if dms_MultiYear_Flag is set to 1"]
[null,"Single Year Model T/F",{"$f":"IF(dms_Model=\"EB\",1,0)","v":1},"dms_EB"]
[null,null,{"$f":"IF(dms_Model=\"CA\",1,0)","v":0},"dms_CA","=dms_SingleYear_Model"]
[null,null,{"$f":"IF(dms_Model=\"ARR\",1,0)","v":0},"dms_ARR"]
[null,"Single Year Final Year Reference","CRY","dms_SingleYear_FinalYear_Ref","This is the reference for EB, CA & ARR RINs"]
[null,"Single Year Final Year Result",{"$f":"INDIRECT(dms_SingleYear_FinalYear_Ref)","v":"2015-16"},"dms_SingleYear_FinalYear_Result","=INDIRECT(dms_SingleYear_FinalYear_Ref)",null,null,null,"Formula errors OK"]
[null,"FRCP length in years",{"$f":"INDEX(dms_FRCPlength_List,MATCH(dms_TradingName,dms_TradingName_List))","v":5},"dms_FRCPlength_Num","=INDEX(dms_FRCPlength_List,MATCH(dms_TradingName,dms_TradingName_List))"]
[null,"Multi Year Final Year Reference",{"$f":"INDEX(dms_FinalYear_List,MATCH(dms_FRCPlength_Num,dms_FRCPlength_Num_List))","v":"FRCP_y5"},"dms_MultiYear_FinalYear_Ref","=INDEX(dms_FinalYear_List,MATCH(dms_FRCPlength_Num,dms_FRCPlength_Num_List))"]
[null,"Multi Year Final Year Result",{"$f":"IF(dms_MultiYear_Flag=0,INDIRECT(dms_MultiYear_FinalYear_Ref),dms_Specified_FinalYear)","v":"2019-20"},"dms_MultiYear_FinalYear_Result","=IF(dms_MultiYear_Flag=0,INDIRECT(dms_MultiYear_FinalYear_Ref),dms_Specified_FinalYear)",null,null,null,"Formula errors OK"]
[null,"CRCP length in years",{"$f":"INDEX(dms_CRCPlength_List,MATCH(dms_TradingName,dms_TradingName_List))","v":5},"dms_CRCPlength_Num","=INDEX(dms_CRCPlength_List,MATCH(dms_TradingName,dms_TradingName_List))"]
[null,"CRCP Final Year Reference",{"$f":"INDEX(dms_CFinalYear_List,MATCH(dms_CRCPlength_Num,dms_CRCPlength_Num_List))","v":"CRCP_y5"},"dms_CRCP_FinalYear_Ref","=INDEX(dms_CFinalYear_List,MATCH(dms_CRCPlength_Num,dms_CRCPlength_Num_List))"]
[null,"CRCP First Year Result",{"$f":"INDEX(dms_CRCP_years,MATCH(dms_CRCPlength_Num,dms_CRCP_index))","v":"2010-11"},"dms_CRCP_FirstYear_Result","=INDEX(dms_CRCP_years,MATCH(dms_CRCPlength_Num,dms_CRCP_index))"]
[null,"CRCP Final Year Result",{"$f":"IF(dms_MultiYear_Flag=0,(IF(SUM(dms_SingleYear_Model)>0,CRY,dms_CRCP_yZ)),dms_Specified_FinalYear)","v":"2015-16"},"dms_CRCP_FinalYear_Result","=IF(dms_MultiYear_Flag=0,(IF(SUM(dms_SingleYear_Model)>0,CRY,dms_CRCP_yZ)),dms_Specified_FinalYear)"]
[null,"Table 6.6.3 - Public lighting repair - no. business days",{"$f":"INDEX(dms_663_List,MATCH(dms_TradingName,dms_TradingName_List))","v":5},"dms_663"]
[null,"Distribution Determination Reference",{"$f":"INDEX(dms_DeterminationRef_List,MATCH(dms_TradingName,dms_TradingName_List))","v":"2014-19 Distribution Determination"}]
[null,"Backcast templates only - unit of measure ","$0s","dms_Backcast_UOM","If the cover sheet is for Backcast data ensure to apply dms_Backcast_UOM named range to this field. Otherwise, do not apply this named range."]
[null,"EB/CA Unit of Measure for Monetary Values","$0s","dms_dollar_nom_UOM","If the cover sheet is attached to an EB files make sure this field is set"]
[]
[null,"discard this record?","NO","dms_DISCARD","If record is to be discarded from DB set this flag to YES"]
[]
[null,"USES NAMED RANGES FLAG","yes","dms_Defined_Names_Used"]

{"sheet":"3.1 Revenue","index":4,"n_rows":49,"n_cols":4,"rows_kept":49,"cut":false,"hidden":false,"merged":[[9,2,9,3],[29,2,29,3],[41,2,41,3]]}
[null,"REGULATORY REPORTING STATEMENT"]
[null,{"$f":"dms_TradingName","v":"Ausgrid"}]
[null,{"$f":"CONCATENATE(\"Benchmarking RIN response \",CRY)","v":"Benchmarking RIN response 2015-16"}]
[null,"3.1 REVENUE"]
[]
[null,"There are THREE tables on this worksheet. Each table has been grouped for ease of navigation. See the Instructions sheet on how to group or ungroup tables. "]
[]
[null,"3.1.1 - REVENUE GROUPING BY CHARGEABLE QUANTITY"]
[null,null,"Standard control services","Alternative control services"]
[null,null,"REVENUE\n($0's)"]
[null,null,{"$f":"CRY","v":"2015-16"},{"$f":"CRY","v":"2015-16"}]
["DREV0101","Revenue from Fixed Customer Charges ",398668947.51899999,0]
["DREV0102","Revenue from Energy Delivery charges where time of use is not a determinant",310748418.065,0]
["DREV0103","Revenue from On–Peak Energy Delivery charges ",190881034.48800001,0]
["DREV0104","Revenue from Shoulder period Energy Delivery Charges",125810290.751,0]
["DREV0105","Revenue from Off–Peak Energy Delivery charges ",41405829.049999997,0]
["DREV0106","Revenue from controlled load customer charges",-604.56500000000005,0]
["DREV0107","Revenue from unmetered supplies",10799705.307,0]
["DREV0108","Revenue from Contracted Maximum Demand charges",0,0]
["DREV0109","Revenue from Measured Maximum Demand charges",427015414.32700002,0]
["DREV0110","Revenue from metering charges",0,83494164.569999993]
["DREV0111","Revenue from connection charges",0,22047307.73]
["DREV0112","Revenue from public lighting charges",0,42363453.909999996]
["DREV0113","Revenue from other Sources",185055478.007,0]
["DREV01","Total revenue by chargeable quantity",{"$f":"SUM(C12:C24)","v":1690384512.9489999},{"$f":"SUM(D12:D24)","v":147904926.20999998}]
[]
[]
[null,"3.1.2 - REVENUE GROUPING BY CUSTOMER TYPE OR CLASS"]
[null,null,"Standard control services","Alternative control services"]
[null,null,"REVENUE\n($0's)"]
[null,null,{"$f":"CRY","v":"2015-16"},{"$f":"CRY","v":"2015-16"}]
["DREV0201","Revenue from residential Customers ",621910469.852,0]
["DREV0202","Revenue from Non residential customers not on demand tariffs ",178503093.91299999,0]
["DREV0203","Revenue from Non-residential low voltage demand tariff customers ",613079005.48800004,0]
["DREV0204","Revenue from Non-residential high voltage demand tariff customers ",81036760.384000003,0]
["DREV0205","Revenue from unmetered supplies",10799705.307,0]
["DREV0206","Revenue from Other Customers",185055478.007,147904926.21000001]
["DREV02","Total revenue by customer class",{"$f":"SUM(C32:C37)","v":1690384512.951},{"$f":"SUM(D32:D37)","v":147904926.21000001}]
[]
[null,"3.1.3 - REVENUE (penalties) ALLOWED (deducted) THROUGH INCENTIVE SCHEMES"]
[null,null,"Standard control services","Alternative control services"]
[null,null,"REVENUE\n($0's)"]
[null,null,{"$f":"CRY","v":"2015-16"},{"$f":"CRY","v":"2015-16"}]
["DREV0301","EBSS",78740427.820999995,0]
["DREV0302","STPIS",0,0]
["DREV0303","F-Factor ",0,0]
["DREV0304","S-Factor True up",0,0]
["DREV0305","Other",3687897.1639999999,0]
["DREV03","Total revenue of incentive schemes",{"$f":"SUM(C44:C48)","v":82428324.984999999},{"$f":"SUM(D44:D48)","v":0}]

{"sheet":"3.2 Operating expenditure","index":5,"n_rows":79,"n_cols":4,"rows_kept":79,"cut":false,"hidden":false,"merged":[[14,2,14,3],[65,2,65,3]]}
[null,"REGULATORY REPORTING STATEMENT"]
[null,{"$f":"dms_TradingName","v":"Ausgrid"}]
[null,{"$f":"CONCATENATE(\"Benchmarking RIN response \",CRY)","v":"Benchmarking RIN response 2015-16"}]
[null,"3.2 OPERATING EXPENDITURE"]
[]
[null,"There are THREE tables on this worksheet. Each table has been grouped for ease of navigation. See the Instructions sheet on how to group or ungroup tables. "]
[]
[null,"Instructions"]
[null,{"$f":"CONCATENATE(\"In table 3.2.1, please list each opex category reported in response to \",dms_TradingName, \"'s annual reporting RIN and report opex for each category.\")","v":"In table 3.2.1, please list each opex category reported in response to Ausgrid's annual reporting RIN and report opex for each category."}]
[]
[]
[null,"3.2.1 - OPEX CATEGORIES"]
[null,"CURRENT OPEX CATEGORIES AND COST ALLOCATIONS"]
[null,null,"Standard control services","Alternative control services"]
[null,null,"EXPENDITURE\n($0's)"]
[null,null,{"$f":"CRY","v":"2015-16"},{"$f":"CRY","v":"2015-16"}]
["DOPEX0101","Contact Centre",7215206.7100000009,0]
["DOPEX0102","Customer Operations",15485205.909999989,28873913.540000003]
["DOPEX0103","Data Operations",8708200.8154152185,2568278.0645848]
["DOPEX0104","Engineering, Planning & Project Management",40113735.799380064,3683557.4830984846]
["DOPEX0105","Finance Function",9262578.5500900075,337401.99577186914]
["DOPEX0106","Information Communication & Technology",52622386.563188501,2262084.7502346947]
["DOPEX0107","Insurance",4650364.3649402317,103556.03188178407]
["DOPEX0108","Management",125861018.72066319,14559785.632818887]
["DOPEX0109","Metering",1700573.6318839989,22626484.178115971]
["DOPEX0110","System Control",20319075.240000024,0]
["DOPEX0111","Inspection",84484004.360000044,6838616.8399999952]
["DOPEX0112","Corrective",57079594.219999984,2067808.2599999988]
["DOPEX0113","Breakdown",37127045.132027276,9286737.9599999804]
["DOPEX0114","Nature induced & other (refer to table 3 for details)",16561287.87797278,102405.44999999994]
["DOPEX0115","Other indirect system maintenance (refer to table 3 for details)",3787126.3900000039,26957.790000000005]
["DOPEX0116","Demand Management",1243687.2000000002,0]
["DOPEX0117","Operational Technology ",12940782.116153304,250378.47453817216]
["DOPEX0118","Other",19867271.402211361,1239036.3270967687]
["DOPEX0119","Property Management",50558052.102359757,1301479.9891654546]
["DOPEX0120","Training & Development",20292242.992863573,135591.30105764014]
["DOPEX0121"]
["DOPEX0122"]
["DOPEX0123"]
["DOPEX0124"]
["DOPEX0125"]
["DOPEX0126"]
["DOPEX0127"]
["DOPEX0128"]
["DOPEX0129"]
["DOPEX0130"]
["DOPEX0131"]
["DOPEX0132"]
["DOPEX0133"]
["DOPEX0134"]
["DOPEX0135"]
["DOPEX0136"]
["DOPEX0137"]
["DOPEX0138"]
["DOPEX0139"]
["DOPEX0140"]
["DOPEX0141"]
["DOPEX0142"]
["DOPEX01","Total opex ",{"$f":"SUM(C17:C58)","v":589879440.09914923},{"$f":"SUM(D17:D58)","v":96264074.068364516}]
[]
[]
[]
[null,"3.2.2 - OPEX CONSISTENCY"]
[null,"CURRENT COST ALLOCATION APPROACH"]
[null,null,"Standard control services","Alternative control services"]
[null,null,"EXPENDITURE\n($0's)"]
[null,null,{"$f":"CRY","v":"2015-16"},{"$f":"CRY","v":"2015-16"}]
["DOPEX0201","Opex for network services",588178866.46726525,11320976.308418894]
["DOPEX0202","Opex for metering",1700573.6318839989,22554566.688916989]
["DOPEX0203","Opex for connection services",null,35684475.286217719]
["DOPEX0204","Opex for public lighting",null,26704055.784810916]
["DOPEX0205","Opex for amounts payable for easement levy or similar direct charges on DNSP"]
["DOPEX0206","Opex for transmission connection point planning"]
[]
[]
[]
[null,"3.2.4 - OPEX FOR HIGH VOLTAGE CUSTOMERS"]
[null,null,"End user costs (not standard control services)"]
["DOPEX0401","Opex for high voltage customers",1601656.1614965731]

{"sheet":"3.2.3 Provisions","index":6,"n_rows":373,"n_cols":3,"rows_kept":373,"cut":false,"hidden":false,"merged":[]}
[null,"REGULATORY REPORTING STATEMENT"]
[null,{"$f":"dms_TradingName","v":"Ausgrid"}]
[null,{"$f":"CONCATENATE(\"Benchmarking RIN response \",CRY)","v":"Benchmarking RIN response 2015-16"}]
[null,"3.2 OPERATING EXPENDITURE"]
[]
[null,"The is ONE table on this worksheet. Each Provision has been grouped for ease of navigation. See the Instructions sheet on how to group and ungroup tables."]
[]
[null,"Instructions"]
[null,{"$f":"CONCATENATE(\"In table 3.2.3, please list each opex category reported in response to \",dms_TradingName, \"'s annual reporting RIN and report opex for each category.\")","v":"In table 3.2.3, please list each opex category reported in response to Ausgrid's annual reporting RIN and report opex for each category."}]
[]
[null,"3.2.3 - PROVISIONS"]
[null,null,"VALUE ($0's)"]
[null,null,{"$f":"CRY","v":"2015-16"}]
["DOPEX03A","Provision name"]
[null,"EMPLOYEE BENEFITS"]
["DOPEX0301A","Opening balance (the carrying amount at the beginning of the period)",438309872.65518785]
[null,"Additional provisions made in the period, including increases to existing provisions"]
["DOPEX0302A","Opex component",255808129.08675832]
["DOPEX0303A","Capex component"]
["DOPEX0304A","Other component",109023523.5721329]
[null,"Amounts used (that is, incurred and charged against the provision) during the period"]
["DOPEX0305A","Opex component",-235731835.88967884]
["DOPEX0306A","Capex component"]
["DOPEX0307A","Other component",-85641685.150027454]
[null,"Unused amounts reversed during the period"]
["DOPEX0308A","Opex component",-75751301.434450939]
["DOPEX0309A","Capex component"]
["DOPEX0310A","Other component",-7189722.2736593625]
[null,"The increase during the period in the discounted amount arising from the passage of time and the effect of any change in the discount rate"]
["DOPEX0311A","Opex component",29145415.38990058]
["DOPEX0312A","Capex component"]
["DOPEX0313A","Other component",70224432.270554781]
["DOPEX0314A","Closing balance (carrying amount at the end of the period)",498196828.22671795]
["DOPEX03B","Provision name"]
[null,"Provision for Restructuring"]
["DOPEX0301B","Opening balance (the carrying amount at the beginning of the period)",39272322.810000002]
[null,"Additional provisions made in the period, including increases to existing provisions"]
["DOPEX0302B","Opex component",39906509.11926569]
["DOPEX0303B","Capex component"]
["DOPEX0304B","Other component"]
[null,"Amounts used (that is, incurred and charged against the provision) during the period"]
["DOPEX0305B","Opex component",-22410305.972346302]
["DOPEX0306B","Capex component"]
["DOPEX0307B","Other component"]
[null,"Unused amounts reversed during the period"]
["DOPEX0308B","Opex component",-9180997.6203243416]
["DOPEX0309B","Capex component"]
["DOPEX0310B","Other component"]
[null,"The increase during the period in the discounted amount arising from the passage of time and the effect of any change in the discount rate"]
["DOPEX0311B","Opex component"]
["DOPEX0312B","Capex component"]
["DOPEX0313B","Other component"]
["DOPEX0314B","Closing balance (carrying amount at the end of the period)",47587528.336595044]
["DOPEX03C","Provision name"]
[null,"INSURANCE"]
["DOPEX0301C","Opening balance (the carrying amount at the beginning of the period)",17472123.64306768]
[null,"Additional provisions made in the period, including increases to existing provisions"]
["DOPEX0302C","Opex component",7972821.090330136]
["DOPEX0303C","Capex component"]
["DOPEX0304C","Other component"]
[null,"Amounts used (that is, incurred and charged against the provision) during the period"]
["DOPEX0305C","Opex component",-4801534.53775072]
["DOPEX0306C","Capex component"]
["DOPEX0307C","Other component"]
[null,"Unused amounts reversed during the period"]
["DOPEX0308C","Opex component",-251535.49972194718]
["DOPEX0309C","Capex component"]
["DOPEX0310C","Other component"]
[null,"The increase during the period in the discounted amount arising from the passage of time and the effect of any change in the discount rate"]
["DOPEX0311C","Opex component",648734.72384461865]
["DOPEX0312C","Capex component"]
["DOPEX0313C","Other component"]
["DOPEX0314C","Closing balance (carrying amount at the end of the period)",21040609.419769764]
["DOPEX03D","Provision name"]
[null,"DIVIDEND"]
["DOPEX0301D","Opening balance (the carrying amount at the beginning of the period)",334556317.72056794]
[null,"Additional provisions made in the period, including increases to existing provisions"]
["DOPEX0302D","Opex component"]
["DOPEX0303D","Capex component"]
["DOPEX0304D","Other component",63500000.000000015]
[null,"Amounts used (that is, incurred and charged against the provision) during the period"]
["DOPEX0305D","Opex component"]
["DOPEX0306D","Capex component"]
["DOPEX0307D","Other component",-334556317.72056794]
[null,"Unused amounts reversed during the period"]
["DOPEX0308D","Opex component"]
["DOPEX0309D","Capex component"]
["DOPEX0310D","Other component"]
[null,"The increase during the period in the discounted amount arising from the passage of time and the effect of any change in the discount rate"]
["DOPEX0311D","Opex component"]
["DOPEX0312D","Capex component"]
["DOPEX0313D","Other component"]
["DOPEX0314D","Closing balance (carrying amount at the end of the period)",63500000]
["DOPEX03E","Provision name"]
[null,"OTHER"]
["DOPEX0301E","Opening balance (the carrying amount at the beginning of the period)",68782683.142351493]
[null,"Additional provisions made in the period, including increases to existing provisions"]
["DOPEX0302E","Opex component",4792451.0111358222]
["DOPEX0303E","Capex component",15252344]
["DOPEX0304E","Other component",4243445.2857231796]
[null,"Amounts used (that is, incurred and charged against the provision) during the period"]
["DOPEX0305E","Opex component",-3111607.6968201189]
["DOPEX0306E","Capex component",-4565890.18]
["DOPEX0307E","Other component"]
[null,"Unused amounts reversed during the period"]
["DOPEX0308E","Opex component",-2163819.0828787317]
["DOPEX0309E","Capex component"]
["DOPEX0310E","Other component"]
[null,"The increase during the period in the discounted amount arising from the passage of time and the effect of any change in the discount rate"]
["DOPEX0311E","Opex component",1101855.6786409989]
["DOPEX0312E","Capex component"]
["DOPEX0313E","Other component"]
["DOPEX0314E","Closing balance (carrying amount at the end of the period)",84331462.15815261]
["DOPEX03F","Provision name"]
[]
["DOPEX0301F","Opening balance (the carrying amount at the beginning of the period)"]
[null,"Additional provisions made in the period, including increases to existing provisions"]
["DOPEX0302F","Opex component"]
["DOPEX0303F","Capex component"]
["DOPEX0304F","Other component"]
[null,"Amounts used (that is, incurred and charged against the provision) during the period"]
["DOPEX0305F","Opex component"]
["DOPEX0306F","Capex component"]
["DOPEX0307F","Other component"]
[null,"Unused amounts reversed during the period"]
["DOPEX0308F","Opex component"]
["DOPEX0309F","Capex component"]
["DOPEX0310F","Other component"]
[null,"The increase during the period in the discounted amount arising from the passage of time and the effect of any change in the discount rate"]
["DOPEX0311F","Opex component"]
["DOPEX0312F","Capex component"]
["DOPEX0313F","Other component"]
["DOPEX0314F","Closing balance (carrying amount at the end of the period)"]
["DOPEX03G","Provision name"]
[null,"Brief description of provision"]
["DOPEX0301G","Opening balance (the carrying amount at the beginning of the period)"]
[null,"Additional provisions made in the period, including increases to existing provisions"]
["DOPEX0302G","Opex component"]
["DOPEX0303G","Capex component"]
["DOPEX0304G","Other component"]
[null,"Amounts used (that is, incurred and charged against the provision) during the period"]
["DOPEX0305G","Opex component"]
["DOPEX0306G","Capex component"]
["DOPEX0307G","Other component"]
[null,"Unused amounts reversed during the period"]
["DOPEX0308G","Opex component"]
["DOPEX0309G","Capex component"]
["DOPEX0310G","Other component"]
[null,"The increase during the period in the discounted amount arising from the passage of time and the effect of any change in the discount rate"]
["DOPEX0311G","Opex component"]
["DOPEX0312G","Capex component"]
["DOPEX0313G","Other component"]
["DOPEX0314G","Closing balance (carrying amount at the end of the period)"]
["DOPEX03H","Provision name"]
[null,"Brief description of provision"]
["DOPEX0301H","Opening balance (the carrying amount at the beginning of the period)"]
[null,"Additional provisions made in the period, including increases to existing provisions"]
["DOPEX0302H","Opex component"]
["DOPEX0303H","Capex component"]
["DOPEX0304H","Other component"]
[null,"Amounts used (that is, incurred and charged against the provision) during the period"]
["DOPEX0305H","Opex component"]
["DOPEX0306H","Capex component"]
["DOPEX0307H","Other component"]
[null,"Unused amounts reversed during the period"]
["DOPEX0308H","Opex component"]
["DOPEX0309H","Capex component"]
["DOPEX0310H","Other component"]
[null,"The increase during the period in the discounted amount arising from the passage of time and the effect of any change in the discount rate"]
["DOPEX0311H","Opex component"]
["DOPEX0312H","Capex component"]
["DOPEX0313H","Other component"]
["DOPEX0314H","Closing balance (carrying amount at the end of the period)"]
["DOPEX03I","Provision name"]
[null,"Brief description of provision"]
["DOPEX0301I","Opening balance (the carrying amount at the beginning of the period)"]
[null,"Additional provisions made in the period, including increases to existing provisions"]
["DOPEX0302I","Opex component"]
["DOPEX0303I","Capex component"]
["DOPEX0304I","Other component"]
[null,"Amounts used (that is, incurred and charged against the provision) during the period"]
["DOPEX0305I","Opex component"]
["DOPEX0306I","Capex component"]
["DOPEX0307I","Other component"]
[null,"Unused amounts reversed during the period"]
["DOPEX0308I","Opex component"]
["DOPEX0309I","Capex component"]
["DOPEX0310I","Other component"]
[null,"The increase during the period in the discounted amount arising from the passage of time and the effect of any change in the discount rate"]
["DOPEX0311I","Opex component"]
["DOPEX0312I","Capex component"]
["DOPEX0313I","Other component"]
["DOPEX0314I","Closing balance (carrying amount at the end of the period)"]
["DOPEX03J","Provision name"]
[null,"Brief description of provision"]
["DOPEX0301J","Opening balance (the carrying amount at the beginning of the period)"]
[null,"Additional provisions made in the period, including increases to existing provisions"]
["DOPEX0302J","Opex component"]
["DOPEX0303J","Capex component"]
["DOPEX0304J","Other component"]
[null,"Amounts used (that is, incurred and charged against the provision) during the period"]
["DOPEX0305J","Opex component"]
["DOPEX0306J","Capex component"]
["DOPEX0307J","Other component"]
[null,"Unused amounts reversed during the period"]
["DOPEX0308J","Opex component"]
["DOPEX0309J","Capex component"]
["DOPEX0310J","Other component"]
[null,"The increase during the period in the discounted amount arising from the passage of time and the effect of any change in the discount rate"]
["DOPEX0311J","Opex component"]
["DOPEX0312J","Capex component"]
["DOPEX0313J","Other component"]
["DOPEX0314J","Closing balance (carrying amount at the end of the period)"]
["DOPEX03K","Provision name"]
[null,"Brief description of provision"]
["DOPEX0301K","Opening balance (the carrying amount at the beginning of the period)"]
[null,"Additional provisions made in the period, including increases to existing provisions"]
["DOPEX0302K","Opex component"]
["DOPEX0303K","Capex component"]
["DOPEX0304K","Other component"]
[null,"Amounts used (that is, incurred and charged against the provision) during the period"]
["DOPEX0305K","Opex component"]
["DOPEX0306K","Capex component"]
["DOPEX0307K","Other component"]
[null,"Unused amounts reversed during the period"]
["DOPEX0308K","Opex component"]
["DOPEX0309K","Capex component"]
["DOPEX0310K","Other component"]
[null,"The increase during the period in the discounted amount arising from the passage of time and the effect of any change in the discount rate"]
["DOPEX0311K","Opex component"]
["DOPEX0312K","Capex component"]
["DOPEX0313K","Other component"]
["DOPEX0314K","Closing balance (carrying amount at the end of the period)"]
["DOPEX03L","Provision name"]
[null,"Brief description of provision"]
["DOPEX0301L","Opening balance (the carrying amount at the beginning of the period)"]
[null,"Additional provisions made in the period, including increases to existing provisions"]
["DOPEX0302L","Opex component"]
["DOPEX0303L","Capex component"]
["DOPEX0304L","Other component"]
[null,"Amounts used (that is, incurred and charged against the provision) during the period"]
["DOPEX0305L","Opex component"]
["DOPEX0306L","Capex component"]
["DOPEX0307L","Other component"]
[null,"Unused amounts reversed during the period"]
["DOPEX0308L","Opex component"]
["DOPEX0309L","Capex component"]
["DOPEX0310L","Other component"]
[null,"The increase during the period in the discounted amount arising from the passage of time and the effect of any change in the discount rate"]
["DOPEX0311L","Opex component"]
["DOPEX0312L","Capex component"]
["DOPEX0313L","Other component"]
["DOPEX0314L","Closing balance (carrying amount at the end of the period)"]
["DOPEX03M","Provision name"]
[null,"Brief description of provision"]
["DOPEX0301M","Opening balance (the carrying amount at the beginning of the period)"]
[null,"Additional provisions made in the period, including increases to existing provisions"]
["DOPEX0302M","Opex component"]
["DOPEX0303M","Capex component"]
["DOPEX0304M","Other component"]
[null,"Amounts used (that is, incurred and charged against the provision) during the period"]
["DOPEX0305M","Opex component"]
["DOPEX0306M","Capex component"]
["DOPEX0307M","Other component"]
[null,"Unused amounts reversed during the period"]
["DOPEX0308M","Opex component"]
["DOPEX0309M","Capex component"]
["DOPEX0310M","Other component"]
[null,"The increase during the period in the discounted amount arising from the passage of time and the effect of any change in the discount rate"]
["DOPEX0311M","Opex component"]
["DOPEX0312M","Capex component"]
["DOPEX0313M","Other component"]
["DOPEX0314M","Closing balance (carrying amount at the end of the period)"]
["DOPEX03N","Provision name"]
[null,"Brief description of provision"]
["DOPEX0301N","Opening balance (the carrying amount at the beginning of the period)"]
[null,"Additional provisions made in the period, including increases to existing provisions"]
["DOPEX0302N","Opex component"]
["DOPEX0303N","Capex component"]
["DOPEX0304N","Other component"]
[null,"Amounts used (that is, incurred and charged against the provision) during the period"]
["DOPEX0305N","Opex component"]
["DOPEX0306N","Capex component"]
["DOPEX0307N","Other component"]
[null,"Unused amounts reversed during the period"]
["DOPEX0308N","Opex component"]
["DOPEX0309N","Capex component"]
["DOPEX0310N","Other component"]
[null,"The increase during the period in the discounted amount arising from the passage of time and the effect of any change in the discount rate"]
["DOPEX0311N","Opex component"]
["DOPEX0312N","Capex component"]
["DOPEX0313N","Other component"]
["DOPEX0314N","Closing balance (carrying amount at the end of the period)"]
["DOPEX03O","Provision name"]
[null,"Brief description of provision"]
["DOPEX0301O","Opening balance (the carrying amount at the beginning of the period)"]
[null,"Additional provisions made in the period, including increases to existing provisions"]
["DOPEX0302O","Opex component"]
["DOPEX0303O","Capex component"]
["DOPEX0304O","Other component"]
[null,"Amounts used (that is, incurred and charged against the provision) during the period"]
["DOPEX0305O","Opex component"]
["DOPEX0306O","Capex component"]
["DOPEX0307O","Other component"]
[null,"Unused amounts reversed during the period"]
["DOPEX0308O","Opex component"]
["DOPEX0309O","Capex component"]
["DOPEX0310O","Other component"]
[null,"The increase during the period in the discounted amount arising from the passage of time and the effect of any change in the discount rate"]
["DOPEX0311O","Opex component"]
["DOPEX0312O","Capex component"]
["DOPEX0313O","Other component"]
["DOPEX0314O","Closing balance (carrying amount at the end of the period)"]
["DOPEX03P","Provision name"]
[null,"Brief description of provision"]
["DOPEX0301P","Opening balance (the carrying amount at the beginning of the period)"]
[null,"Additional provisions made in the period, including increases to existing provisions"]
["DOPEX0302P","Opex component"]
["DOPEX0303P","Capex component"]
["DOPEX0304P","Other component"]
[null,"Amounts used (that is, incurred and charged against the provision) during the period"]
["DOPEX0305P","Opex component"]
["DOPEX0306P","Capex component"]
["DOPEX0307P","Other component"]
[null,"Unused amounts reversed during the period"]
["DOPEX0308P","Opex component"]
["DOPEX0309P","Capex component"]
["DOPEX0310P","Other component"]
[null,"The increase during the period in the discounted amount arising from the passage of time and the effect of any change in the discount rate"]
["DOPEX0311P","Opex component"]
["DOPEX0312P","Capex component"]
["DOPEX0313P","Other component"]
["DOPEX0314P","Closing balance (carrying amount at the end of the period)"]
["DOPEX03Q","Provision name"]
[null,"Brief description of provision"]
["DOPEX0301Q","Opening balance (the carrying amount at the beginning of the period)"]
[null,"Additional provisions made in the period, including increases to existing provisions"]
["DOPEX0302Q","Opex component"]
["DOPEX0303Q","Capex component"]
["DOPEX0304Q","Other component"]
[null,"Amounts used (that is, incurred and charged against the provision) during the period"]
["DOPEX0305Q","Opex component"]
["DOPEX0306Q","Capex component"]
["DOPEX0307Q","Other component"]
[null,"Unused amounts reversed during the period"]
["DOPEX0308Q","Opex component"]
["DOPEX0309Q","Capex component"]
["DOPEX0310Q","Other component"]
[null,"The increase during the period in the discounted amount arising from the passage of time and the effect of any change in the discount rate"]
["DOPEX0311Q","Opex component"]
["DOPEX0312Q","Capex component"]
["DOPEX0313Q","Other component"]
["DOPEX0314Q","Closing balance (carrying amount at the end of the period)"]
["DOPEX03R","Provision name"]
[null,"Brief description of provision"]
["DOPEX0301R","Opening balance (the carrying amount at the beginning of the period)"]
[null,"Additional provisions made in the period, including increases to existing provisions"]
["DOPEX0302R","Opex component"]
["DOPEX0303R","Capex component"]
["DOPEX0304R","Other component"]
[null,"Amounts used (that is, incurred and charged against the provision) during the period"]
["DOPEX0305R","Opex component"]
["DOPEX0306R","Capex component"]
["DOPEX0307R","Other component"]
[null,"Unused amounts reversed during the period"]
["DOPEX0308R","Opex component"]
["DOPEX0309R","Capex component"]
["DOPEX0310R","Other component"]
[null,"The increase during the period in the discounted amount arising from the passage of time and the effect of any change in the discount rate"]
["DOPEX0311R","Opex component"]
["DOPEX0312R","Capex component"]
["DOPEX0313R","Other component"]
["DOPEX0314R","Closing balance (carrying amount at the end of the period)"]

{"sheet":"3.3 Assets (RAB)","index":7,"n_rows":138,"n_cols":5,"rows_kept":138,"cut":false,"hidden":false,"merged":[[9,2,9,4],[22,2,22,4],[116,2,116,4],[99,2,99,4]]}
[null,"REGULATORY REPORTING STATEMENT"]
[null,{"$f":"dms_TradingName","v":"Ausgrid"}]
[null,{"$f":"CONCATENATE(\"Benchmarking RIN response \",CRY)","v":"Benchmarking RIN response 2015-16"}]
[null,"3.3 ASSETS"]
[]
[null,"There are FOUR tables on this worksheet. Each table has been grouped (and sub-grouped) for ease of navigation. See the Instructions sheet on how to group or ungroup tables. "]
[]
[null,"3.3.1 - REGULATORY ASSET BASE VALUES"]
[null,null,"Network services","Standard control services","Alternative control services"]
[null,null,"VALUE ($0's)"]
[null,null,{"$f":"CRY","v":"2015-16"},{"$f":"CRY","v":"2015-16"},"2015-16"]
[null,"FOR TOTAL ASSET BASE"]
["DRAB0101","Opening value",14675423737.347155,14675423737.347155,350402226.01286966]
["DRAB0102","Inflation addition",225032898.37973753,225032898.37973753,6161513.3616713881]
["DRAB0103","Straight line depreciation",-536496261.8088485,-536496261.8088485,-43373053.606059551]
["DRAB0105","Actual additions (recognised in RAB)",489554936.84261531,489554936.84261531,10222795.792064019]
["DRAB0106","Disposals ",-177172736.0775432,-177172736.0775432,-771483.26710688462]
["DRAB0107","Closing value",{"$f":"SUM(C13:C17)","v":14676342574.683115},{"$f":"SUM(D13:D17)","v":14676342574.683115},322641998.29343861]
[]
[]
[null,"3.3.2 - ASSET VALUE ROLL FORWARD"]
[null,null,"Network services","Standard control services","Alternative control services"]
[null,null,"VALUE ($0's)"]
[null,null,{"$f":"CRY","v":"2015-16"},{"$f":"CRY","v":"2015-16"},"2015-16"]
[null,"For overhead network assets less than 33kV:"]
["DRAB0201","Opening value",1699820110.9953647,1699820110.9953647,0]
["DRAB0202","Inflation addition",26074950.4899025,26074950.4899025,0]
["DRAB0203","Straight line depreciation",-41178278.675346509,-41178278.675346509,0]
["DRAB0205","Actual additions (recognised in RAB)",65050113.364664137,65050113.364664137,0]
["DRAB0206","Disposals ",0,0,0]
["DRAB0207","Closing value",{"$f":"SUM(C26:C30)","v":1749766896.1745846},{"$f":"SUM(D26:D30)","v":1749766896.1745846},{"$f":"SUM(E26:E30)","v":0}]
[null,"For underground network assets less than 33kV:"]
["DRAB0301","Opening value",3471043499.6202273,3471043499.6202273,0]
["DRAB0302","Inflation addition",51901672.772254795,51901672.772254795,0]
["DRAB0303","Straight line depreciation",-77851658.553049162,-77851658.553049162,0]
["DRAB0305","Actual additions (recognised in RAB)",118713548.81826152,118713548.81826152,0]
["DRAB0306","Disposals ",0,0,0]
["DRAB0307","Closing value",{"$f":"SUM(C33:C37)","v":3563807062.6576948},{"$f":"SUM(D33:D37)","v":3563807062.6576948},{"$f":"SUM(E33:E37)","v":0}]
[null,"For distribution substations and transformers:"]
["DRAB0401","Opening value",2608027342.0032325,2608027342.0032325,0]
["DRAB0402","Inflation addition",39774301.740744464,39774301.740744464,0]
["DRAB0403","Straight line depreciation",-77417284.031250596,-77417284.031250596,0]
["DRAB0405","Actual additions (recognised in RAB)",86078984.369598731,86078984.369598731,0]
["DRAB0406","Disposals ",-8886680.5141265877,-8886680.5141265877,0]
["DRAB0407","Closing value",{"$f":"SUM(C40:C44)","v":2647576663.5681987},{"$f":"SUM(D40:D44)","v":2647576663.5681987},{"$f":"SUM(E40:E44)","v":0}]
[null,"For overhead network assets 33kV and above:"]
["DRAB0501","Opening value",793340123.26172245,793340123.26172245,0]
["DRAB0502","Inflation addition",11102697.721186966,11102697.721186966,0]
["DRAB0503","Straight line depreciation",-22203454.314996876,-22203454.314996876,0]
["DRAB0505","Actual additions (recognised in RAB)",29717248.454992652,29717248.454992652,0]
["DRAB0506","Disposals ",-1750925.4153347688,-1750925.4153347688,0]
["DRAB0507","Closing value",{"$f":"SUM(C47:C51)","v":810205689.70757043},{"$f":"SUM(D47:D51)","v":810205689.70757043},{"$f":"SUM(E47:E51)","v":0}]
[null,"For underground network assets 33kV and above:"]
["DRAB0601","Opening value",1406741084.8941939,1406741084.8941939,0]
["DRAB0602","Inflation addition",23467652.647430461,23467652.647430461,0]
["DRAB0603","Straight line depreciation",-45288117.07005699,-45288117.07005699,0]
["DRAB0605","Actual additions (recognised in RAB)",48426914.069065087,48426914.069065087,0]
["DRAB0606","Disposals ",0,0,0]
["DRAB0607","Closing value",{"$f":"SUM(C54:C58)","v":1433347534.5406325},{"$f":"SUM(D54:D58)","v":1433347534.5406325},{"$f":"SUM(E54:E58)","v":0}]
[null,"Zone substations and transformers"]
["DRAB0701","Opening value",3534465076.9993691,3534465076.9993691,0]
["DRAB0702","Inflation addition",54900830.817200959,54900830.817200959,0]
["DRAB0703","Straight line depreciation",-88983640.705866992,-88983640.705866992,0]
["DRAB0705","Actual additions (recognised in RAB)",113125444.0480148,113125444.0480148,0]
["DRAB0706","Disposals ",-81088138.84322843,-81088138.84322843,0]
["DRAB0707","Closing value",{"$f":"SUM(C61:C65)","v":3532419572.3154898},{"$f":"SUM(D61:D65)","v":3532419572.3154898},{"$f":"SUM(E61:E65)","v":0}]
[null,"For easements:"]
["DRAB0801","Opening value",110055588.27260622,110055588.27260622,0]
["DRAB0802","Inflation addition",2288894.1472985949,2288894.1472985949,0]
[null,null,0,0,0]
["DRAB0805","Actual additions (recognised in RAB)",8260.9167543698022,8260.9167543698022,0]
["DRAB0806","Disposals ",-22057192.138422761,-22057192.138422761,0]
["DRAB0807","Closing value",{"$f":"SUM(C68:C72)","v":90295551.198236421},{"$f":"SUM(D68:D72)","v":90295551.198236421},{"$f":"SUM(E68:E72)","v":0}]
[null,"For meters:"]
["DRAB0901","Opening value",0,0,229865812.07008961]
["DRAB0902","Inflation addition",0,0,3466376.446016951]
["DRAB0903","Straight line depreciation",0,0,-18319872.247201011]
["DRAB0905","Actual additions (recognised in RAB)",0,0,9893298.2019824069]
["DRAB0906","Disposals ",0,0,0]
["DRAB0907","Closing value",{"$f":"SUM(C75:C79)","v":0},{"$f":"SUM(D75:D79)","v":0},{"$f":"SUM(E75:E79)","v":224905614.47088793}]
[null,"For “other” asset items with long lives:"]
["DRAB1001","Opening value",740585417.67997801,740585417.67997801,99577935.747310489]
["DRAB1002","Inflation addition",10798216.239910727,10798216.239910727,2379083.0644667563]
["DRAB1003","Straight line depreciation",-82987749.407456383,-82987749.407456383,-15713138.945945567]
["DRAB1005","Actual additions (recognised in RAB)",15349844.638783649,15349844.638783649,-2296982.1860703798]
["DRAB1006","Disposals ",-63389799.16643066,-63389799.16643066,-771483.26710688462]
["DRAB1007","Closing value",{"$f":"SUM(C82:C86)","v":620355929.98478532},{"$f":"SUM(D82:D86)","v":620355929.98478532},{"$f":"SUM(E82:E86)","v":83175414.412654415}]
[null,"For “other” asset items with short lives:"]
["DRAB1101","Opening value",311345493.62046033,311345493.62046033,20958478.195469584]
["DRAB1102","Inflation addition",4723681.8038080893,4723681.8038080893,316053.85118768126]
["DRAB1103","Straight line depreciation",-100586079.05082497,-100586079.05082497,-9340042.4129129648]
["DRAB1105","Actual additions (recognised in RAB)",13084578.162480293,13084578.162480293,2626479.7761519919]
["DRAB1106","Disposals ",0,0,0]
["DRAB1107","Closing value",{"$f":"SUM(C89:C93)","v":228567674.53592375},{"$f":"SUM(D89:D93)","v":228567674.53592375},{"$f":"SUM(E89:E93)","v":14560969.409896292}]
[]
[]
[]
[null,"3.3.3 - TOTAL DISAGGREGATED RAB ASSET VALUES"]
[null,null,"Network services","Standard control services","Alternative control services"]
[null,null,"VALUE ($0's)"]
[null,null,{"$f":"CRY","v":"2015-16"},{"$f":"CRY","v":"2015-16"},"2015-16"]
["DRAB1201","Overhead distribution assets (wires and poles)",1724793503.5849748,1724793503.5849748,0]
["DRAB1202","Underground distribution assets (cables, ducts etc)",3517425281.1389608,3517425281.1389608,0]
["DRAB1203","Distribution substations including transformers",2627802002.7857151,2627802002.7857151,0]
["DRAB1204","Overhead assets 33kV and above (wires and towers / poles etc)",801772906.48464632,801772906.48464632,0]
["DRAB1205","Underground assets 33kV and above (cables, ducts etc)",1420044309.7174129,1420044309.7174129,0]
["DRAB1206","Zone substations",3533442324.6574292,3533442324.6574292,0]
["DRAB1207","Easements ",100175569.73542133,100175569.73542133,0]
["DRAB1208","Meters",0,0,227385713.27048877]
["DRAB1209","Other assets with long lives (please specify)",680470673.83238173,680470673.83238173,91376675.079982445]
["DRAB1210","Other assets with short lives (please specify)",269956584.078192,269956584.078192,17759723.802682936]
["DRAB13","Value of Capital Contributions or Contributed Assets (included in the above)",75732270.060000002,75732270.060000002,0]
[]
[]
[null,"3.3.4 - ASSET LIVES"]
[null,null,"Network services","Standard control services","Alternative control services"]
[null,null,"Service Life (Years)"]
[null,null,{"$f":"CRY","v":"2015-16"},{"$f":"CRY","v":"2015-16"},"2015-16"]
[null,"ESTIMATED SERVICE LIFE OF NEW ASSETS"]
["DRAB1401","Overhead network assets less than 33kV (wires and poles)",55.272044978371888,55.272044978371888,0]
["DRAB1402","Underground network assets less than 33kV (cables)",56.973702358829023,56.973702358829023,0]
["DRAB1403","Distribution substations including transformers",46.718741618040603,46.718741618040603,0]
["DRAB1404","Overhead network assets 33kV and above (wires and towers / poles etc) ",47.893874233616231,47.893874233616231,0]
["DRAB1405","Underground network assets 33kV and above(cables, ducts etc)",45.978437140369294,45.978437140369294,0]
["DRAB1406","Zone substations and transformers",46.028983948125422,46.028983948125422,0]
["DRAB1407","Meters",0,0,20.022914707341258]
["DRAB1408","“Other” assets with long lives",27.463706798638018,27.463706798638018,18.820880661092382]
["DRAB1409","“Other” assets with short lives",6.285956770382108,6.285956770382108,5]
[null,"ESTIMATED RESIDUAL SERVICE LIFE"]
["DRAB1501","Overhead network assets less than 33kV (wires and poles)",42.739951925936197,42.739951925936197,0]
["DRAB1502","Underground network assets less than 33kV (cables)",44.888399639103696,44.888399639103696,0]
["DRAB1503","Distribution substations including transformers",33.229472257986593,33.229472257986593,0]
["DRAB1504","Overhead network assets 33kV and above (wires and towers / poles etc) ",33.776276819974214,33.776276819974214,0]
["DRAB1505","Underground network assets 33kV and above (cables, ducts etc)",33.587169503258337,33.587169503258337,0]
["DRAB1506","Zone substations and transformers",33.60817767947578,33.60817767947578,0]
["DRAB1507","Meters",0,0,12.064623454572775]
["DRAB1508","“Other” assets with long lives",18.212138657030749,18.212138657030749,6.5377465115218891]
["DRAB1509","“Other” assets with short lives",3.5097667333864626,3.5097667333864626,1.9574273835436762]

{"sheet":"3.4 Operational data","index":8,"n_rows":139,"n_cols":4,"rows_kept":139,"cut":false,"hidden":false,"merged":[]}
[null,"REGULATORY REPORTING STATEMENT"]
[null,{"$f":"dms_TradingName","v":"Ausgrid"}]
[null,{"$f":"CONCATENATE(\"Benchmarking RIN response \",CRY)","v":"Benchmarking RIN response 2015-16"}]
[null,"3.4 OPERATIONAL DATA"]
[]
[null,"There are THREE tables on this worksheet. Each table has been grouped for ease of navigation. See the Instructions sheet on how to group or ungroup tables. "]
[]
[null," 3.4.1 - ENERGY DELIVERY"]
[null,null,null,"Standard control services"]
[null,null,null,"VOLUME (0's)"]
[null,null,"Units",{"$f":"CRY","v":"2015-16"}]
["DOPED01","Total energy delivered","GWh",25617.656348245]
[]
[]
[null," 3.4.1.1 - Energy grouping - delivery by chargeable quantity"]
["DOPED0201","Energy Delivery where time of use is not a determinant","GWh",5740.2748091770009]
["DOPED0202","Energy Delivery at On-peak times","GWh",3940.1302715916681]
["DOPED0203","Energy Delivery at Shoulder times ","GWh",6540.4271153260133]
["DOPED0204","Energy Delivery at Off-peak times","GWh",8146.5655546423177]
["DOPED0205","Controlled load energy deliveries","GWh",1066.407442445]
["DOPED0206","Energy Delivery to unmetered supplies","GWh",183.85115506299999]
[]
[null," 3.4.1.2 - Energy - received from TNSP and other DNSPs by time of receipt"]
["DOPED0301","Energy into DNSP network at On-peak times","GWh",5346.7671907356435]
["DOPED0302","Energy into DNSP network at Shoulder times ","GWh",7789.672874392194]
["DOPED0303","Energy into DNSP network at Off-peak times","GWh",13077.557639639464]
["DOPED0304","Energy received from TNSP and other DNSPs not included in the above categories","GWh",0]
[]
[null," 3.4.1.3 - Energy - received into DNSP system from embedded generation by time of receipt"]
["DOPED0401","Energy into DNSP network at On-peak times from non-residential embedded generation","GWh",48.753165219399172]
["DOPED0402","Energy into DNSP network at Shoulder times from non-residential embedded generation","GWh",76.543153463237331]
["DOPED0403","Energy into DNSP network at Off-peak times from non-residential embedded generation","GWh",159.03754556736163]
["DOPED0404","Energy received from embedded generation not included in above categories from non-residential embedded generation","GWh",0.38017170168683245]
["DOPED0405","Energy into DNSP network at On-peak times from residential embedded generation","GWh",30.655342935987193]
["DOPED0406","Energy into DNSP network at Shoulder times from residential embedded generation","GWh",125.06186823158207]
["DOPED0407","Energy into DNSP network at Off-peak times from residential embedded generation","GWh",0.46037296175988263]
["DOPED0408","Energy received from embedded generation not included in above categories from residential embedded generation","GWh",44.603535824183183]
[]
[null," 3.4.1.4 - Energy grouping  - customer type or class"]
["DOPED0501","Residential customers energy deliveries","GWh",8514.2785874910005]
["DOPED0502","Non residential customers not on demand tariffs energy deliveries","GWh",1912.3796060050001]
["DOPED0503","Non-residential low voltage demand tariff customers energy deliveries","GWh",9810.1576526629997]
["DOPED0504","Non-residential high voltage demand tariff customers energy deliveries","GWh",5196.989347022999]
["DOPED0505","Other Customer Class Energy Deliveries","GWh",183.85115506299999]
[]
[]
[null," 3.4.2 - CUSTOMER NUMBERS"]
[null,null,null,"Standard control services"]
[null,null,null,"VOLUME (0's)"]
[null,null,null,{"$f":"CRY","v":"2015-16"}]
[null," 3.4.2.1 - Distribution customer numbers by customer type or class"]
["DOPCN0101","Residential customer numbers",null,1504478]
["DOPCN0102","Non residential customers not on demand tariff customer numbers",null,147100.72065846529]
["DOPCN0103","Low voltage demand tariff customer numbers",null,36171]
["DOPCN0104","High voltage demand tariff customer numbers",null,370.5]
["DOPCN0105","Unmetered Customer Numbers",null,161.5]
["DOPCN0106","Other Customer Numbers",null,0]
["DOPCN01","Total customer numbers",null,{"$f":"SUM(D52:D57)","v":1688281.7206584653}]
[]
[null," 3.4.2.2 - Distribution customer numbers by location on the network"]
["DOPCN0201","Customers on CBD network",null,30881.722513199133]
["DOPCN0202","Customers on Urban network",null,1380903.6070680218]
["DOPCN0203","Customers on Short rural network",null,274188.04423002101]
["DOPCN0204","Customers on Long rural network",null,2308.3468472234449]
["DOPCN02","Total customer numbers",null,{"$f":"SUM(D61:D64)","v":1688281.7206584653}]
[]
[null," 3.4.2.3 - Distribution customer numbers by TasNetworks (D) feeder categories (TasNetworks (D) only)"]
[null,"Critical Infrastructure"]
[null,"High Density Commercial"]
[null,"Urban"]
[null,"High Density Rural"]
[null,"Low Density Rural"]
[null,"Total customer numbers",null,{"$f":"SUM(D68:D72)","v":0}]
[]
[null," 3.4.2.4 - Unmetered Supply TasNetworks (D) only)"]
["DOPCN0301","Number of unmetered connections reported in customer numbers in the economic benchmarking RIN"]
["DOPCN0302","Unmetered connections not reported in customer numbers in the economic benchmarking RIN"]
["DOPCN0303","Total unmetered connections"]
[]
[]
[null," 3.4.3 - SYSTEM DEMAND"]
[null,null,null,"Standard control services"]
[null,null,null,"VOLUME (0's)"]
[null,null,"Units",{"$f":"CRY","v":"2015-16"}]
[null," 3.4.3.1 - Annual system maximum demand characteristics at the zone substation level – MW measure"]
["DOPSD0101","Non-coincident Summated Raw System Annual Maximum Demand","MW ",5474.8700600000002]
["DOPSD0102","Non–coincident Summated Weather Adjusted System Annual Maximum Demand 10% POE","MW ",5942.0620799999997]
["DOPSD0103","Non–coincident Summated Weather Adjusted System Annual Maximum Demand 50% POE","MW ",5429.0170200000002]
["DOPSD0104","Coincident Raw System Annual Maximum Demand","MW ",4841.1496399999996]
["DOPSD0105","Coincident Weather Adjusted System Annual Maximum Demand 10% POE","MW ",5319.3945800000001]
["DOPSD0106","Coincident Weather Adjusted System Annual Maximum Demand 50% POE","MW ",4766.1708500000004]
[]
[null," 3.4.3.2 - Annual system maximum demand characteristics at the transmission connection point  – MW measure"]
["DOPSD0107","Non-coincident Summated Raw System Annual Maximum Demand","MW ",5798.3421600000001]
["DOPSD0108","Non–coincident Summated Weather Adjusted System Annual Maximum Demand 10% POE","MW ",6246.7446399999999]
["DOPSD0109","Non–coincident Summated Weather Adjusted System Annual Maximum Demand 50% POE","MW ",5757.6032599999999]
["DOPSD0110","Coincident Raw System Annual Maximum Demand","MW ",5203.8149800000001]
["DOPSD0111","Coincident Weather Adjusted System Annual Maximum Demand 10% POE","MW ",5684.6141600000001]
["DOPSD0112","Coincident Weather Adjusted System Annual Maximum Demand 50% POE","MW ",5125.0920500000002]
[]
[null," 3.4.3.3 - Annual system maximum demand characteristics at the zone substation level – MVA measure"]
["DOPSD0201","Non–coincident Summated Raw System Annual Maximum Demand"," MVA",5792.7394100000001]
["DOPSD0202","Non–coincident Summated Weather Adjusted System Annual Maximum Demand 10% POE"," MVA",6286.0753100000002]
["DOPSD0203","Non–coincident Summated Weather Adjusted System Annual Maximum Demand 50% POE"," MVA",5743.6109200000001]
["DOPSD0204","Coincident Raw System Annual Maximum Demand"," MVA",5145.3192399999998]
["DOPSD0205","Coincident Weather Adjusted System Annual Maximum Demand 10% POE"," MVA",5651.7349299999996]
["DOPSD0206","Coincident Weather Adjusted System Annual Maximum Demand 50% POE"," MVA",5065.8494000000001]
[]
[null," 3.4.3.4 - Annual system maximum demand characteristics at the transmission connection point – MVA measure"]
["DOPSD0207","Non–coincident Summated Raw System Annual Maximum Demand"," MVA",6093.40859]
["DOPSD0208","Non–coincident Summated Weather Adjusted System Annual Maximum Demand 10% POE"," MVA",6565.52297]
["DOPSD0209","Non–coincident Summated Weather Adjusted System Annual Maximum Demand 50% POE"," MVA",6051.7055]
["DOPSD0210","Coincident Raw System Annual Maximum Demand"," MVA",5465.51523]
["DOPSD0211","Coincident Weather Adjusted System Annual Maximum Demand 10% POE"," MVA",5970.7638399999996]
["DOPSD0212","Coincident Weather Adjusted System Annual Maximum Demand 50% POE"," MVA",5384.0676800000001]
[]
[null," 3.4.3.5 - Power factor conversion between MVA and MW"]
["DOPSD0301","Average overall network power factor conversion between MVA and MW","Factor",0.95209999999999995]
["DOPSD0302","Average power factor conversion for  low voltage distribution lines","Factor",0.94589999999999996]
["DOPSD0303","Average power factor conversion for 3.3 kV lines","Factor"]
["DOPSD0304","Average power factor conversion for 6.6 kV lines","Factor"]
["DOPSD0305","Average power factor conversion for 7.6 kV lines","Factor"]
["DOPSD0306","Average power factor conversion for 11 kV lines","Factor",0.95622854585277395]
["DOPSD0307","Average power factor conversion for SWER lines","Factor",0.9]
["DOPSD0308","Average power factor conversion for 22 kV lines","Factor",0.9]
["DOPSD0309","Average power factor conversion for 33 kV lines","Factor",0.90025262515430393]
["DOPSD0310","Average power factor conversion for 44 kV lines","Factor"]
["DOPSD0311","Average power factor conversion for 66 kV lines","Factor",0.98309425023040165]
["DOPSD0312","Average power factor conversion for 110 kV lines","Factor"]
["DOPSD0313","Average power factor conversion for 132 kV lines","Factor",0.90580497601088816]
["DOPSD0314","Average power factor conversion for 220 kV lines","Factor"]
[]
[null," 3.4.3.6 - Demand supplied (for customers charged on this basis) – MW measure"]
["DOPSD0401","Summated Chargeable Contracted Maximum Demand","MW ",0]
["DOPSD0402","Summated Chargeable Measured Maximum Demand ","MW ",668.4372998925985]
[]
[null," 3.4.3.7 - Demand supplied (for customers charged on this basis) – MVA measure"]
["DOPSD0403","Summated Chargeable Contracted Maximum Demand"," MVA",0]
["DOPSD0404","Summated Chargeable Measured Maximum Demand "," MVA",3711.6138639137348]

{"sheet":"3.5 Physical assets","index":9,"n_rows":98,"n_cols":3,"rows_kept":98,"cut":false,"hidden":false,"merged":[]}
[null,"REGULATORY REPORTING STATEMENT"]
[null,{"$f":"dms_TradingName","v":"Ausgrid"}]
[null,{"$f":"CONCATENATE(\"Benchmarking RIN response \",CRY)","v":"Benchmarking RIN response 2015-16"}]
[null,"3.5 PHYSICAL ASSETS"]
[]
[null,"There are THREE tables on this worksheet. Each table has been grouped (and sub-grouped) for ease of navigation. See the Instructions sheet on how to group or ungroup tables. "]
[]
[null,"3.5.1 - NETWORK CAPACITIES"]
[null,null,"VOLUME in KM's\n(0's)"]
[null,null,{"$f":"CRY","v":"2015-16"}]
[null,"Circuit length (kilometers)"]
[null,"3.5.1.1 - Overhead network length of circuit at each voltage"]
["DPA0101","Overhead low voltage distribution",13088.56]
["DPA0102","Overhead 2.2 kV",0]
["DPA0103","Overhead 6.6kv",0]
["DPA0104","Overhead 7.6 kV",0]
["DPA0105","Overhead 11 kV",9798.9810442798316]
["DPA0106","Overhead SWER",124.53518408699999]
["DPA0107","Overhead 22 kV",125.58322489899999]
["DPA0108","Overhead 33 kV",1214.9019999999996]
["DPA0109","Overhead 44 kV",0]
["DPA0110","Overhead 66 kV",480.04599999999959]
["DPA0111","Overhead 110kV",0]
["DPA0112","Overhead 132 kV",1101.0580000000004]
["DPA0113","Overhead 220kV",0]
["DPA0114","Other ",0.29799999999999999]
["DPA01","Total overhead circuit km",{"$f":"SUM(C9:C26)","v":25933.963453265827}]
[null,"3.5.1.2 - Underground network circuit length at each voltage"]
["DPA0201","Underground low voltage distribution",6046.0243344824239]
["DPA0202","Underground 5 kV",77.084275809410002]
["DPA0203","Underground 6.6 Kv",0]
["DPA0204","Underground 7.6 kV",0]
["DPA0205","Underground 11 kV",8098.8556718998079]
["DPA0206","Underground SWER"]
["DPA0207","Underground 22 kV",1.0000497000000001E-2]
["DPA0208","Underground 33 kV",677.66099999999994]
["DPA0209","Underground 66 kV",9.4439999999999973]
["DPA0210","Underground 110 kV",0]
["DPA0211","Underground 132 kV",610.16800000000023]
["DPA0212","Other ",0]
["DPA02","Total underground circuit km",{"$f":"SUM(C29:C40)","v":15519.247282688642}]
[null,null,"VOLUME in MVA\n(0's)"]
[null,"Circuit Capacity (MVA)",{"$f":"CRY","v":"2015-16"}]
[null,"3.5.1.3 - Estimated overhead network weighted average MVA capacity by voltage class"]
["DPA0301","Overhead low voltage distribution",0.21132139619556922]
["DPA0302","Overhead 6.6 kV",0]
["DPA0303","Overhead 7.6 kV",0]
["DPA0304","Overhead 11 kV",3.8993934533771544]
["DPA0305","Overhead SWER",0.34868095278969968]
["DPA0306","Overhead 22 kV",2.6268459779376556]
["DPA0307","Overhead 33 kV",33.735041699546024]
["DPA0308","Overhead 44 kV",0]
["DPA0309","Overhead 66 kV",76.66092226432329]
["DPA0310","Overhead 110 kV"]
["DPA0311","Overhead 132 kV",228]
["DPA0312","Overhead 220 kV",0]
["DPA0313","Other ",0]
[null,"3.5.1.4 - Estimated underground network weighted average MVA capacity by voltage class"]
["DPA0401","Underground low voltage distribution",0.23920116796062121]
["DPA0402","Underground 5 kV",3.3342347570075104]
["DPA0403","Underground 6.6 kV",0]
["DPA0404","Underground 7.6 kV",0]
["DPA0405","Underground 11 kV",6.9343215878027564]
["DPA0406","Underground SWER",0]
["DPA0407","Underground 12.7 kV",0]
["DPA0408","Underground 22 kV",0]
["DPA0409","Underground 33 kV",24.290980905857708]
["DPA0410","Underground 66 kV",100.47638017168576]
["DPA0411","Underground 110 kV",0]
["DPA0412","Underground 132 kV",176.39299388528408]
["DPA0413","Other",0]
[]
[]
[]
[null,"3.5.2 - TRANSFORMER CAPACITIES"]
[null,null,"VOLUME in MVA\n(0's)"]
[null,null,{"$f":"CRY","v":"2015-16"}]
[null,"3.5.2.1 - Distribution transformer total installed capacity"]
["DPA0501","Distribution transformer capacity owned by utility",15766.663]
["DPA0502","Distribution transformer capacity owned by High Voltage Customers",1970.6806082021401]
["DPA0503","Cold spare capacity included in DPA0501",647.17899999999997]
[null,"3.5.2.2 - Zone substation transformer capacity"]
["DPA0601","Total installed capacity for first step transformation where there are two steps to reach distribution voltage",7738]
["DPA0602","Total installed capacity for second step transformation where there are two steps to reach distribution voltage",7154]
["DPA0603","Total zone substation transformer capacity where there is only a single step transformation to reach distribution voltage",7775]
["DPA0604","Total zone substation transformer  capacity ",25760]
["DPA0605","Cold spare capacity of zone substation transformers included in DPA0604",3093]
[null,"3.5.2.3 - Distribution - other transformer capacity"]
[null,"Distribution other - transformer capacity owned by utility "]
[]
[]
[]
[null,"3.5.3 - PUBLIC LIGHTING"]
[null,null,"VOLUME \n(0's)"]
[null,null,{"$f":"CRY","v":"2015-16"}]
["DPA0701","Public lighting luminaires",251441]
["DPA0702","Public lighting poles",61707]
["DPA0703","Public lighting columns ",0]

{"sheet":"3.6 Quality of service","index":10,"n_rows":36,"n_cols":4,"rows_kept":36,"cut":false,"hidden":false,"merged":[]}
[null,"REGULATORY REPORTING STATEMENT"]
[null,{"$f":"dms_TradingName","v":"Ausgrid"}]
[null,{"$f":"CONCATENATE(\"Benchmarking RIN response \",CRY)","v":"Benchmarking RIN response 2015-16"}]
[null,"3.6 QUALITY OF SERVICE DATA"]
[]
[]
[null,"3.6.1 - RELIABILITY"]
[null,null,null,"(0's)"]
[null,null,"Units",{"$f":"CRY","v":"2015-16"}]
[null,"INCLUSIVE OF MEDs"]
["DQS0101","Whole of network unplanned SAIDI","minutes/customer",143.98825278511225]
["DQS0102","Whole of network unplanned SAIDI excluding excluded outages","minutes/customer",143.95217124206783]
["DQS0103","Whole of network unplanned SAIFI","interruptions/customer",0.92831107135752644]
["DQS0104","Whole of network unplanned SAIFI excluding excluded outages","interruptions/customer",0.92354139852175232]
[null,"EXCLUSIVE OF MEDs"]
["DQS0105","Whole of network unplanned SAIDI","minutes/customer",76.042601474350036]
["DQS0106","Whole of network unplanned SAIDI excluding excluded outages","minutes/customer",76.006865543512617]
["DQS0107","Whole of network unplanned SAIFI","interruptions/customer",0.70761755372760216]
["DQS0108","Whole of network unplanned SAIFI excluding excluded outages","interruptions/customer",0.70284847293009545]
[]
[null,"3.6.2 - ENERGY NOT SUPPLIED"]
[null,null,null,"(0's)"]
[null,null,"Units",{"$f":"CRY","v":"2015-16"}]
["DQS0201","Energy Not Supplied (planned)","GWh",3.2846084867999998]
["DQS0202","Energy Not Supplied (unplanned)","GWh",5.1636291799]
["DQS02","Total",null,{"$f":"SUM(D24:D25)","v":8.448237666699999}]
[]
[null,"3.6.3 - SYSTEM LOSSES"]
[null,null,null,"(0's)"]
[null,null,"Unit",{"$f":"CRY","v":"2015-16"}]
["DQS03","System losses","%",4.051899105623117E-2]
[]
[null,"3.6.4 - CAPACITY UTILISATION"]
[null,null,null,"(0's)"]
[null,null,"Unit",{"$f":"CRY","v":"2015-16"}]
["DQS04","Overall utilisation","%",0.47739999999999999]

{"sheet":"3.7 Operating environment","index":11,"n_rows":35,"n_cols":4,"rows_kept":35,"cut":false,"hidden":false,"merged":[]}
[null,"REGULATORY REPORTING STATEMENT"]
[null,{"$f":"dms_TradingName","v":"Ausgrid"}]
[null,{"$f":"CONCATENATE(\"Benchmarking RIN response \",CRY)","v":"Benchmarking RIN response 2015-16"}]
[null,"3.7 OPERATING ENVIRONMENT FACTORS"]
[]
[]
[null,"3.7.1 - DENSITY FACTORS"]
[null,null,null,"(0's)"]
[null,null,"Units",{"$f":"CRY","v":"2015-16"}]
["DOEF0101","Customer density","Customer / km",43.386404633510871]
["DOEF0102","Energy density","MWh/customer",15.173804250071235]
["DOEF0103","Demand density","kVA / customer",3.431]
[]
[null,"3.7.2 - TERRAIN FACTORS"]
[null,null,null,"(0's)"]
[null,null,null,{"$f":"CRY","v":"2015-16"}]
["DOEF0201","Rural proportion","%",0.45269999999999999]
["DOEF0202","Urban and CBD vegetation maintenance spans","Number of spans",389404]
["DOEF0203","Rural vegetation maintenance spans","Number of spans",200508]
["DOEF0204","Total vegetation maintenance spans","Number of spans",620509]
["DOEF0205","Total number of spans","Number of spans",1186710]
["DOEF0206","Average urban and CBD vegetation maintenance span cycle","Years",1]
["DOEF0207","Average rural vegetation maintenance span cycle","Years",1]
["DOEF0208","Average number of trees per urban and CBD vegetation maintenance span","Trees",1.49]
["DOEF0209","Average number of trees per rural vegetation maintenance span","Trees",3.25]
["DOEF0210","Average number of defects per urban and CBD vegetation maintenance span","Defects",0.18]
["DOEF0211","Average number of defects per rural vegetation maintenance span","Defects",1.24]
["DOEF0212","Tropical proportion","Spans",1223]
["DOEF0213","Standard vehicle access","km",7098.92]
["DOEF0214","Bushfire risk","Spans",190597]
[]
[null,"3.7.3 - SERVICE AREA FACTORS"]
[null,null,null,"(0's)"]
[null,null,null,{"$f":"CRY","v":"2015-16"}]
["DOEF0301","Route Line length","km",38912.69]

{"sheet":"NSP amendments","index":12,"n_rows":2,"n_cols":3,"rows_kept":2,"cut":false,"hidden":false,"merged":[[0,1,0,2]]}
[null,{"$f":"CONCATENATE(dms_TradingName,\" data amendments\")","v":"Ausgrid data amendments"}]
[null,"Amended Table","Comments"]